Cogmind - Beta 17.1 @@@ ROGUE MODE // 2026.09.21 @ 13:03:40 Player: Scuttle Result: Defending 0bPrime! Performance ------------- Evolutions (8) 4000 Regions Visited (26) 5200 Robots Destroyed (449) 2245 Value Destroyed (30197) 30197 Prototype IDs (120) 2400 Alien Tech Used (5) 1000 Bonus (53035) 53035 TOTAL SCORE: 98077 Bonus ------- High Alert Combat Kills 21044 Follower Combat Kills 50 Registered with UFD 300 Met Optimus in HQ 500 MAIN.C Attacked Warlord 500 Warlord Defense Kills 94 Destroyed Superfortress 15000 Met Optimus at Protoforge 1000 Executed Drillbomb Mission 10000 Optimus Survived to 0b1 3000 Win 3000 Friendly Fire -1453 Cogmind --------- Core Integrity 674/1450 Matter 291/300 Energy 1140/1140 System Corruption 27% Temperature Cool (0) Movement Walking (100) Location 0bPrime Parts ------- > --- POWER (2) -------- Concept Zero-point Core Concept Zero-point Core > --- PROPULSION (7) --- Enhanced Biometal Leg (fused) Experimental VSS Leg Experimental VSS Leg Experimental Armored Exoskeleton > --- UTILITY (12) ----- Concept Thermoelectric Network Concept Antigrav Storage Unit Concept Chromion Battery Experimental Optical Array Experimental Targeting Computer Advanced Target Analyzer Concept Core Analysis Suite > --- WEAPON (3) ------- Concept Plasma Driver Concept Plasma Driver Concept Plasma Driver > --- INVENTORY (25) --- Reinforced Antimatter Reactor Hybrid Graviton Reactor Concept Zero-point Core Experimental Armored Exoskeleton Concept Phasing Heat Sink Concept NT7 Matterbank (750) Concept Core Analysis Suite Advanced Kinecellerator Concept Matter Streamer Concept Plasma Driver Perforator Peak State ------------ > --- POWER ------------ Hybrid Graviton Reactor Concept Zero-point Core > --- PROPULSION ------- Experimental VSS Leg Experimental Armored Exoskeleton Concept Biometal Exoskeleton > --- UTILITY ---------- Concept Phasing Heat Sink Concept Thermoelectric Network Concept Antigrav Storage Unit Concept Networked Targeting System Experimental Target Analyzer Concept Core Analysis Suite Experimental Reaction Control System Concept Core Shell Centrium Medium Armor Plating Experimental Shield Generator Improved Remote Force Field Crosscalibrator > --- WEAPON ----------- Concept Plasma Driver Perforator > --- INVENTORY -------- Experimental Antimatter Reactor Concept Zero-point Core Concept Zero-point Core Experimental VSS Leg Experimental VSS Leg Experimental Armored Exoskeleton Experimental Armored Exoskeleton Concept Thermoelectric Network Concept Chromion Battery Concept NT7 Matterbank Concept Core Analysis Suite Concept Matter Streamer Concept Plasma Driver Concept Plasma Driver Concept Plasma Driver Enhanced Gamma Bomb Array Concept Rapid Grenade Launcher Concept Rapid Grenade Launcher [Rating: 292] Favorites ----------- Power Concept Zero-point Core Engine Makeshift Power Source Power Core Concept Zero-point Core Reactor Micro Antimatter Reactor Propulsion Light Treads Treads Light Treads Leg Experimental VSS Leg Wheel Armored Wheel Hover Unit Gravjet Array Flight Unit Improved VTOL Module Utility Large Storage Unit Device Experimental Sensor Array Storage Large Storage Unit Processor Advanced Signal Interpreter Hackware Ghost Barrier Protection Improved Light Armor Plating Weapon Spread Laser Energy Gun Spread Laser Energy Cannon Concept Plasma Driver Ballistic Gun Assault Rifle Ballistic Cannon Perforator Launcher Concept Rapid Grenade Launcher Special Weapon Improved Plasma Cutter Impact Weapon Shock Maul Slashing Weapon Greatsword Piercing Weapon Vortex Lance Special Melee Weapon Improved Datajack Build | -11 -10 -10 -9 -9 -9 -8 -8 -7 -7 -7 -7 -5 -5 -5 -5 -5 -5 -4 -4 -4 -4 -3 -3 -2 -2 -2 ------- Run | Yrd Mat Min Mat Min Exi Min Mat Fac Sto Rec Scr Fac Was Fac Upp Upp War Pro Fac Was Fac Res Tes Res Qua Frg Slots Evolved 16 | . . . 2 . . . 2 2 . . . 4 . . . . . . 2 . . 2 . 2 . . Power 1 | . . . . . . . . 1 . . . . . . . . . . . . . . . . . . Propulsion 5 | . . . 1 . . . 1 1 . . . 1 . . . . . . 1 . . . . . . . Utility 9 | . . . 1 . . . 1 . . . . 3 . . . . . . 1 . . 2 . 1 . . Weapon 1 | . . . . . . . . . . . . . . . . . . . . . . . . 1 . . Parts Attached 221 | 5 11 1 2 7 1 2 29 14 4 . 7 8 1 8 2 1 4 . 4 1 1 15 5 7 12 69 Power 27 | 1 2 . . . . 1 4 2 1 . 2 . . . 2 . . . . 1 . 3 . 1 . 7 Engine 12 | 1 2 . . . . 1 1 2 1 . . . . . 2 . . . . . . 2 . . . . Core 8 | . . . . . . . 3 . . . 2 . . . . . . . . . . . . . . 3 Reactor 7 | . . . . . . . . . . . . . . . . . . . . 1 . 1 . 1 . 4 Propulsion 50 | 2 1 1 1 2 . . 11 5 1 . . 3 . . . . 2 . 1 . . 1 . 2 2 15 Treads 10 | 2 . 1 1 2 . . 4 . . . . . . . . . . . . . . . . . . . Leg 12 | . . . . . . . 4 . . . . . . . . . . . . . . . . . . 8 Wheel 2 | . . . . . . . 2 . . . . . . . . . . . . . . . . . . . Hover 7 | . . . . . . . . . . . . . . . . . . . . . . . . . . 7 Flight 19 | . 1 . . . . . 1 5 1 . . 3 . . . . 2 . 1 . . 1 . 2 2 . Utility 102 | . 6 . 1 3 1 1 5 4 1 . 2 4 1 7 . 1 1 . 3 . 1 9 2 4 8 37 Device 42 | . 3 . . . . . 3 1 . . 1 1 . 3 . 1 . . 2 . . 6 2 . 3 16 Storage 7 | . 1 . . . 1 . . 1 . . . . . . . . . . . . . 1 . 1 . 2 Processor 23 | . 1 . . . . . . . . . 1 1 . 3 . . . . . . . . . 3 2 12 Hackware 3 | . . . . . . . . . . . . . . . . . . . 1 . 1 1 . . . . Protection 27 | . 1 . 1 3 . 1 2 2 1 . . 2 1 1 . . 1 . . . . 1 . . 3 7 Artifact . | . . . . . . . . . . . . . . . . . . . . . . . . . . . Weapon 42 | 2 2 . . 2 . . 9 3 1 . 3 1 . 1 . . 1 . . . . 2 3 . 2 10 Energy Gun 5 | . 2 . . 1 . . 2 . . . . . . . . . . . . . . . . . . . Energy Cannon 6 | . . . . . . . . . 1 . . . . . . . . . . . . . 1 . . 4 Ballistic Gun 13 | 2 . . . . . . 7 . . . . . . . . . . . . . . . 1 . . 3 Ballistic Cannon 1 | . . . . . . . . . . . . . . . . . . . . . . . 1 . . . Launcher 7 | . . . . 1 . . . 1 . . . . . . . . . . . . . 1 . . 1 3 Special Weapon 1 | . . . . . . . . . . . . . . . . . 1 . . . . . . . . . Impact Weapon 2 | . . . . . . . . 1 . . . . . 1 . . . . . . . . . . . . Slashing Weapon 4 | . . . . . . . . 1 . . 3 . . . . . . . . . . . . . . . Piercing Weapon 2 | . . . . . . . . . . . . . . . . . . . . . . 1 . . 1 . Special Melee Weapon 1 | . . . . . . . . . . . . 1 . . . . . . . . . . . . . . Unidentified Prototypes 48 | . 1 . . . . . 2 . 1 . . 1 . 3 . 1 1 . 1 . 1 5 4 . 5 22 Corrupted Parts 2 | . . . . . . . . . . . . . 1 . . . . . . . . . . . . 1 System Corruption 11 | . . . . . . . . . . . . . 6 . . . . . . . . . . . . 5 Parts Lost 40 | . . . . 6 . 2 8 3 2 . . . . . . . . . . . 2 . . 1 1 15 Power 6 | . . . . . . 1 2 1 1 . . . . . . . . . . . 1 . . . . . Propulsion 10 | . . . . 2 . . 5 . . . . . . . . . . . . . . . . 1 1 1 Utility 20 | . . . . 3 . 1 1 1 1 . . . . . . . . . . . 1 . . . . 12 Weapon 4 | . . . . 1 . . . 1 . . . . . . . . . . . . . . . . . 2 Highest Loss Streak 6 | . . . . 6 . 2 3 3 2 . . . . . . . . . . . 2 . . 1 1 2 To Critical Strikes . | . . . . . . . . . . . . . . . . . . . . . . . . . . . Average Backups 11 | . 7 14 12 9 7 7 15 10 9 9 9 4 4 4 4 4 4 5 4 5 5 7 14 14 13 15 Power 1 | . . . . . . . . . . . . . . . . 1 . . . . . 1 1 1 2 2 Propulsion 2 | . 3 6 5 3 3 3 5 2 2 2 2 . . . . . . . . . . . . . . 2 Utility 3 | . 1 4 3 1 1 1 4 4 3 4 4 2 2 2 2 1 1 1 . 2 2 3 7 7 4 4 Weapon 3 | . . 4 4 3 3 3 4 2 1 2 2 2 2 2 2 2 3 4 4 3 3 3 4 5 4 6 Tool/Special . | . . . . . . . . . . . . . . . . . . . . . . . . . . . Unused Backups 31 | 1 . . . . . . 5 3 . . . . . . 1 . 1 . . . . 2 2 . 3 13 Power 3 | . . . . . . . . . . . . . . . . . . . . . . . . . 1 2 Propulsion 7 | . . . . . . . 3 . . . . . . . . . . . . . . . 1 . . 3 Utility 7 | . . . . . . . . 1 . . . . . . 1 . 1 . . . . . . . 1 3 Weapon 12 | 1 . . . . . . 2 2 . . . . . . . . . . . . . 2 1 . . 4 Tool/Special 2 | . . . . . . . . . . . . . . . . . . . . . . . . . 1 1 Average Slot Usage (%) 87 | . 95 100 99 97 100 98 95 85 76 76 91 87 88 92 94 90 94 94 94 95 91 93 93 86 84 73 Engine 4 | . 14 14 11 11 11 10 4 9 4 . . . . . . 5 10 11 10 10 2 2 . . . . Core 3 | . . . . . . . 4 2 2 7 14 11 11 11 10 5 . . . . . . . . . 4 Reactor 1 | . . . . . . . . . . . . . . . . . . . . . 5 4 9 8 8 3 Treads 10 | . 27 28 33 32 33 33 29 . . . . . . . . . . . . . . . . . . . Leg 2 | . . . . . . . 1 4 . . . . . . . . . . . . . . . . . 8 Hover 1 | . . . . . . . . . . . . . . . . . . . . . . . . . . 4 Flight 10 | . . . . . . . . 32 38 38 38 29 29 29 29 27 27 27 29 30 30 27 27 25 21 1 Device 13 | . 11 14 11 4 . . 10 5 7 7 7 10 11 15 17 16 22 22 22 20 22 24 25 18 19 16 Storage 5 | . 7 14 11 11 11 11 9 7 7 7 7 2 . . . . . . . . . 2 4 4 4 4 Processor 7 | . 5 . . . . . . . . . 2 5 5 9 11 11 11 11 10 10 10 9 9 15 16 13 Protection 8 | . . . 10 15 22 22 13 12 15 15 12 14 17 12 11 11 11 11 7 10 5 5 4 5 2 6 Energy Gun 4 | . 4 28 22 21 22 22 6 . . . . . . . . . . . . . . . . . . . Energy Cannon 1 | . . . . . . . . . . . . . . . 2 4 . 3 3 5 5 . . . . 3 Ballistic Gun 4 | . 23 . . . . . 11 2 . . . . . . . . . . . . . . . 3 2 1 Peak Build Rating 292 | 5 11 13 16 16 15 15 39 42 42 36 53 65 69 81 82 87 102 102 119 124 124 143 162 152 178 292 Average Rating 106 | 3 7 11 15 15 15 14 23 36 36 36 46 61 65 77 81 82 99 102 117 116 121 134 148 148 161 234 On Entrance 67 | . 5 11 13 16 15 15 15 39 36 36 36 45 65 69 81 82 87 102 102 116 124 120 143 144 137 172 Avg Prop Armor Cover (%) 4 | . . . . . . . 11 . . . . . . . . . . . 1 1 1 . . . . 11 Naked Turns . | . . . . . . . . . . . . . . . . . . . . . . . . . . . Heaviest Build 125 | 7 32 32 39 41 61 61 64 58 25 21 31 32 34 34 27 34 32 37 37 42 47 62 90 63 65 125 Greatest Support 184 | 40 40 42 62 62 60 60 80 72 26 26 26 34 34 37 39 39 49 49 56 48 48 63 63 67 67 184 Greatest Overweight (x) 8 | . . . . . 1 1 5 . 8 . 1 1 . . . . . . . . . . 1 . . 1 Average Overweight (x) . | . . . . . . . . . . . . . . . . . . . . . . . . . . . Largest Inventory Capacity 25 | 5 15 15 15 15 20 20 20 20 10 10 10 10 5 5 5 5 5 5 5 5 5 15 15 15 15 25 Average Capacity 15 | 5 10 15 15 15 16 20 20 11 10 10 10 6 5 5 5 5 5 5 5 5 5 12 15 15 15 23 Most Carried 25 | 2 15 15 13 12 8 8 20 20 10 10 10 9 5 5 5 5 5 5 5 5 5 13 15 15 15 25 Average Carried 12 | . 7 14 12 9 7 7 15 10 9 10 10 5 5 5 4 4 4 5 4 5 5 7 14 14 14 20 Final Capacity 25 | 5 15 15 15 15 20 20 20 10 10 10 10 5 5 5 5 5 5 5 5 5 5 15 15 15 15 25 Final Carried 17 | 1 14 14 12 7 8 8 17 10 10 10 10 5 5 5 5 4 5 5 5 5 5 13 15 15 15 15 Class Distribution -------------------- 33% | Mutant 19% | Scavenger-Mutant 16% | Sprinter 11% | Hacker-Sprinter 7% | Scavenger-Sprinter 3% | Scavenger-Tank 3% | Scientist-Sprinter Dominant Class ---------------- Mutant | -10/Materials Mutant | -10/Mines Mutant | -9/Materials Mutant | -9/Mines Mutant | -9/Exiles Mutant | -8/Mines Scavenger-Mutant | -8/Materials Sprinter | -7/Factory Sprinter | -7/Storage Sprinter | -7/Recycling Mutant | -7/Scraptown Sprinter | -5/Factory Sprinter | -5/Waste Sprinter | -5/Factory Sprinter | -5/Upper Caves Sprinter | -5/Upper Caves Sprinter | -5/Warlord Sprinter | -4/Proximity Caves Hacker-Sprinter | -4/Factory Hacker-Sprinter | -4/Waste Hacker-Sprinter | -4/Factory Hacker-Sprinter | -3/Research Hacker-Mutant | -3/Testing Scientist-Sprinter | -2/Research Hacker-Sprinter | -2/Quarantine Scavenger-Mutant | -2/Protoforge Resources | -11 -10 -10 -9 -9 -9 -8 -8 -7 -7 -7 -7 -5 -5 -5 -5 -5 -5 -4 -4 -4 -4 -3 -3 -2 -2 -2 ----------- Run | Yrd Mat Min Mat Min Exi Min Mat Fac Sto Rec Scr Fac Was Fac Upp Upp War Pro Fac Was Fac Res Tes Res Qua Frg Matter Collected 12297 | 30 548 57 20 141 . 38 778 198 24 . 191 . . 277 79 . 156 . . . . 245 367 400 522 8226 Remotely 2984 | . . . . . . . . . . . . . . . . . . . . . . . . . . 2984 Salvage Created 20067 | . 781 . 178 99 . 122 1494 251 . . . . . 238 . . 51 . 107 . . 387 389 920 1153 13897 Parts 896 | . 48 . 10 4 . 11 72 18 . . . . . 11 . . . . 1 . . 15 9 53 71 573 Haulers Intercepted 15 | . 1 . 1 . . . 4 2 . . . . . 1 . . . . 1 . . 2 . 1 1 1 Recyclers Shooed 4 | . 2 . . . . . 1 . . . . . . . . . . . . . . . . 1 . . Parts Field Recycled . | . . . . . . . . . . . . . . . . . . . . . . . . . . . Retrieved Matter . | . . . . . . . . . . . . . . . . . . . . . . . . . . . Parts Self-Destructed . | . . . . . . . . . . . . . . . . . . . . . . . . . . . Prevented . | . . . . . . . . . . . . . . . . . . . . . . . . . . . Parts Restored 8 | . . . . . . . . . . . . . . . . . . . . . . . . . . 8 Faulty 8 | . . . . . . . . . . . . . . . . . . . . . . . . . . 8 Kills | -11 -10 -10 -9 -9 -9 -8 -8 -7 -7 -7 -7 -5 -5 -5 -5 -5 -5 -4 -4 -4 -4 -3 -3 -2 -2 -2 ------- Run | Yrd Mat Min Mat Min Exi Min Mat Fac Sto Rec Scr Fac Was Fac Upp Upp War Pro Fac Was Fac Res Tes Res Qua Frg Combat Hostiles Destroyed 387 | . 20 . 7 18 . 4 24 3 . . . . . 1 . . 1 . . . . 3 3 6 14 283 Melee 2 | . . . . . . . . 1 . . . . . 1 . . . . . . . . . . . . Guns 123 | . 20 . 7 2 . 4 24 . . . . . . . . . . . . . . . 2 6 14 44 Cannons 75 | . . . . . . . . . . . . . . . . . . . . . . . 1 . . 74 AOE 183 | . . . . 16 . . . 2 . . . . . . . . 1 . . . . 3 . . . 161 Classes Destroyed 29 | . 6 . 1 2 . . 4 1 . . . . . . . . 1 . . . . . . 1 . 13 Worker 13 | . 2 . . . . 1 . 4 . . . . . 1 . . . . . . . 2 . 2 . 1 Builder 5 | . . . . . . . 1 1 . . . . . 1 . . . . . . . . . 1 . 1 Hauler 16 | . 1 . 1 . . . 4 2 . . . . . 1 . . . . 1 . . 2 . 1 1 2 Recycler 8 | . 1 . . . . 1 2 1 . . . . . . . . . . . . . 1 1 1 . . Carrier 5 | . . . . . . . . . . . . . . . . . . . . . . . . . . 5 Mechanic 9 | . . . . . . . . . . . . . . . . . . . . . . . . . . 9 Operator 4 | . . . . . . . 1 . . . . . . . . . . . . . . . . 1 1 1 Drone 3 | . . . . . . . . . . . . . . . . . . . . . . . . . . 3 Watcher 13 | . 1 . 1 . . . . . . . . . . 1 . . . . . . . 2 . 3 2 3 Swarmer 57 | . 6 . 6 . . 4 2 1 . . . . . . . . . . . . . 3 . . . 35 Cutter 2 | . . . . . . . . 2 . . . . . . . . . . . . . . . . . . Saboteur 4 | . . . . . . . . . . . . . . . . . . . . . . . . . . 4 Grunt 77 | . 14 . . . . . 15 . . . . . . 1 . . . . . . . . 2 . . 45 Brawler 18 | . . . . . . . 1 . . . . . . . . . . . . . . . . . . 17 Duelist 13 | . . . . . . . . . . . . . . . . . . . . . . . . . . 13 Protector 20 | . . . . . . . . . . . . . . . . . 1 . . . . . . . . 19 Researcher 4 | . . . . . . . . . . . . . . . . . . . . . . . . . . 4 Sentry 20 | . . . 1 . . . 4 . . . . . . . . . . . . . . . . 1 3 11 Demolisher 2 | . . . . 2 . . . . . . . . . . . . . . . . . . . . . . Hunter 27 | . . . . . . . 2 . . . . . . . . . . . . . . . 1 2 . 22 Programmer 32 | . . . . . . . . . . . . . . . . . . . . . . . . 3 3 26 Quarantine Guard 8 | . . . . . . . . . . . . . . . . . . . . . . . . . 8 . Hotshot 4 | . . . . . . . . . . . . . . . . . . . . . . . . . . 4 Decapitator 6 | . . . . . . . . . . . . . . . . . . . . . . . . . . 6 Immortal 2 | . . . . . . . . . . . . . . . . . . . . . . . . . . 2 Striker 38 | . . . . . . . . . . . . . . . . . . . . . . . . . . 38 Executioner 33 | . . . . . . . . . . . . . . . . . . . . . . . . . . 33 Alpha 7 2 | . . . . . . . . . . . . . . . . . . . . . . . . . . 2 V-Series 3 | . . . . . . . . . . . . . . . . . . . . . . . . . . 3 Scrapper 1 | . . . . . . . . . . . . . . . . . . . . . . . . . . 1 Scrapoid 2 | . . . . . . . . . . . . . . . . . . . . . . . . . . 2 Scraphulk 1 | . . . . . . . . . . . . . . . . . . . . . . . . . . 1 Assembled 16 | . . . . 16 . . . . . . . . . . . . . . . . . . . . . . Best Kill Streak 20 | . 4 . 4 16 . 5 7 5 . . . . . 3 . . 1 . 1 . . 5 2 8 3 20 Combat Bots Only 20 | . 3 . 4 16 . 4 7 2 . . . . . 1 . . 1 . . . . 3 2 5 3 20 Max Kills in Single Turn 10 | . 1 . 2 4 . 1 1 2 . . . . . 1 . . 1 . 1 . . 2 1 2 1 10 Gunslinging 1 | . . . 1 . . . . . . . . . . . . . . . . . . . . . . . Exploded 10 | . . . . 4 . . . 2 . . . . . . . . 1 . . . . 2 . . . 10 Melee 1 | . . . . . . . . 1 . . . . . 1 . . . . . . . . . . . . Uniques/NPCs Destroyed . | . . . . . . . . . . . . . . . . . . . . . . . . . . . Combat | -11 -10 -10 -9 -9 -9 -8 -8 -7 -7 -7 -7 -5 -5 -5 -5 -5 -5 -4 -4 -4 -4 -3 -3 -2 -2 -2 -------- Run | Yrd Mat Min Mat Min Exi Min Mat Fac Sto Rec Scr Fac Was Fac Upp Upp War Pro Fac Was Fac Res Tes Res Qua Frg Hostile Shots Fired 1123 | . 78 . 18 35 . 15 160 68 122 . . 1 . 12 . 3 18 8 12 . 1 4 5 47 15 501 Missed 480 | . 23 . 8 6 . 3 43 30 73 . . . . 6 . 3 12 6 11 . 1 1 1 20 9 224 Hits 643 | . 55 . 10 29 . 12 117 38 49 . . 1 . 6 . . 6 2 1 . . 3 4 27 6 277 Melee 20 | . . . . . . . 2 2 . . . . . . . . . . . . . . . . . 16 Projectile 623 | . 55 . 10 29 . 12 115 36 49 . . 1 . 6 . . 6 2 1 . . 3 4 27 6 261 AOE 25 | . . . . 18 . . . 2 . . . . . . . . 2 . . . . . . . . 3 Critical Strikes 44 | . 1 . 1 . . . 3 2 1 . . . . . . . . . . . . . . 2 . 34 Actively Blocked 6 | . . . . . . . . . . . . . . . . . . . . . . . . . . 6 Part Disruptions 1 | . . . . . . . . . . . . . . . . . 1 . . . . . . . . . Damage Taken 13378 | . 591 . 135 962 . 96 1894 515 466 . . 18 . 111 . . 151 36 18 . 142 64 130 520 273 7256 Core 1152 | . 82 . . 103 . . 140 88 108 . . . . 18 . . . . 18 . . . . 109 24 462 Absorbed by Shields 2108 | . . . . . . . 16 . 12 . . . . . . . . . . . . . 14 . . 2066 Redirected to Shielding 1058 | . . . . . . . . 64 73 . . 11 . 24 . . 49 . . . 17 13 25 42 . 740 Regen/Repaired (Parts) 109 | . . . . . . . 109 . . . . . . . . . . . . . . . . . . . Core Remaining (%) 81 | 100 . 67 . . . 74 74 . . . 72 . . . . . . 98 . . 98 . 100 . . 46 Volleys Fired 703 | . 54 . 14 16 . 5 111 1 4 . . . . . 16 9 . 30 15 5 4 20 7 35 36 321 Largest 3 | . 2 . 2 2 . 2 2 1 1 . . . . . 1 1 . 1 1 1 1 1 1 1 1 3 Hottest 420 | . 130 . 130 130 . 130 130 39 35 . . . . . 35 35 . 35 35 35 35 49 100 150 50 420 Shots Fired 1008 | . 108 . 28 23 . 10 224 1 4 . . . . . 16 8 . 30 15 5 4 20 7 35 36 434 Gun 555 | . 108 . 28 14 . 10 224 . . . . . . . . . . . . . . . 4 22 32 113 Cannon 347 | . . . . . . . . . 4 . . . . . 16 8 . 30 15 5 4 18 3 13 4 227 Launcher 106 | . . . . 9 . . . 1 . . . . . . . . . . . . . 2 . . . 94 Special . | . . . . . . . . . . . . . . . . . . . . . . . . . . . Kinetic 487 | . 90 . . . . . 165 . . . . . . . . . . . . . . . 6 22 32 172 Thermal 415 | . 18 . 28 14 . 10 59 . 4 . . . . . 16 8 . 30 15 5 4 18 1 13 4 168 Explosive 106 | . . . . 9 . . . 1 . . . . . . . . . . . . . 2 . . . 94 Electromagnetic . | . . . . . . . . . . . . . . . . . . . . . . . . . . . Robot Hit Streak 41 | . 15 . 6 14 . 4 19 . . . . . . . . . . . . . . 1 10 16 22 41 Robot Miss Streak 13 | . 5 . 13 6 . 5 6 . . . . . . . . . . 2 . . . . 6 2 1 9 Penetration Max 2 | . . . . . . . . . . . . . . . . . . . . . . . 1 2 1 2 Secondary Targets 9 | . 2 . 2 1 . 2 2 . . . . . . . . . . . . . . . . . . . Max Gunslinging Chain 1 | . 1 . 1 1 . 1 1 . . . . . . . . . . . . . . . . . . . Shots Hit Robots 629 | . 75 . 23 17 . 8 162 14 . . . 3 . 12 . . 1 . 3 . 1 15 9 22 19 245 Core Hits 1097 | . 53 . 27 52 . 11 72 11 . . . . . 5 . . . . . . . 8 10 27 29 792 Critical Kills 149 | . 1 . . . . . 1 . . . . . . . . . . . . . . . 3 14 15 115 Critical Parts Destroyed 139 | . 1 . . . . . 1 . . . . . . . . . 1 . 1 . . . 5 15 21 94 Critical Strikes 314 | . 2 . . . . . 3 . . . . . . 1 . . 1 . 1 . . 3 8 29 39 227 Burn 1 | . . . . . . . 1 . . . . . . . . . . . . . . . . . . . Meltdown 5 | . . . . . . . . . . . . . . . . . . . . . . . . . . 5 Destroy 302 | . 2 . . . . . 2 . . . . . . . . . . . . . . . 8 29 39 222 Smash 2 | . . . . . . . . . . . . . . . . . 1 . 1 . . . . . . . Sever 1 | . . . . . . . . . . . . . . 1 . . . . . . . . . . . . Sunder 3 | . . . . . . . . . . . . . . . . . . . . . . 3 . . . . Melee Attacks 130 | . . . . . . . . 21 . . . 10 . 32 2 . 2 1 5 . 1 17 12 3 18 6 Impact 24 | . . . . . . . . 4 . . . . . 12 2 . 2 1 3 . . . . . . . Slashing 43 | . . . . . . . . 17 . . . 8 . 18 . . . . . . . . . . . . Piercing . | . . . . . . . . . . . . . . . . . . . . . . . . . . . Entropic 54 | . . . . . . . . . . . . . . . . . . . . . . 16 11 3 18 6 Sneak Attacks 31 | . . . . . . . . 9 . . . 3 . 5 . . . . 3 . 1 6 3 . . 1 Combat Hostiles . | . . . . . . . . . . . . . . . . . . . . . . . . . . . Follow-up Attacks . | . . . . . . . . . . . . . . . . . . . . . . . . . . . Damage Inflicted 74292 | . 1003 13 277 1459 . 92 2452 1108 . . . 72 . 565 . . 82 . 125 . . 2284 633 371 840 62916 Guns 5722 | . 993 . 277 177 . 72 2446 . . . . . . . . . . . . . . . 56 327 387 987 Cannons 5734 | . . . . . . . . . . . . . . . . . . . . . . . 18 44 . 5672 Explosions 58038 | . . . . 1282 . . . 140 . . . . . . . . . . . . . 543 . . . 56073 Melee 4745 | . . . . . . . . 964 . . . 72 . 565 . . 82 . 125 . . 1741 559 . 453 184 Ramming 53 | . 10 13 . . . 20 6 4 . . . . . . . . . . . . . . . . . . Kinetic 5054 | . 820 . . . . . 1790 . . . . . . . . . . . . . . . 74 327 387 1656 Thermal 6402 | . 173 . 277 177 . 72 656 . . . . . . . . . . . . . . . . 44 . 5003 Explosive 57975 | . . . . 1282 . . . 77 . . . . . . . . . . . . . 543 . . . 56073 Electromagnetic 63 | . . . . . . . . 63 . . . . . . . . . . . . . . . . . . Impact 552 | . . . . . . . . 345 . . . . . . . . 82 . 125 . . . . . . . Slashing 1256 | . . . . . . . . 619 . . . 72 . 565 . . . . . . . . . . . . Piercing . | . . . . . . . . . . . . . . . . . . . . . . . . . . . Entropic 2937 | . . . . . . . . . . . . . . . . . . . . . . 1741 559 . 453 184 Highest Corruption 27 | . . . . . . . 2 1 1 1 . . 16 16 16 16 16 . . 6 6 . . . . 27 Average Corruption 13 | . . . . . . . 2 1 1 1 . . 13 16 16 16 16 . . 6 6 . . . . 18 Corruption Purged . | . . . . . . . . . . . . . . . . . . . . . . . . . . . Corruption Blocked . | . . . . . . . . . . . . . . . . . . . . . . . . . . . Effects 158 | . . . . . . . 16 . 1 . . . 1 12 7 5 . . . . . . . . . 116 Message Errors 36 | . . . . . . . 3 . . . . . 1 2 1 1 . . . . . . . . . 28 Matter Fused 42 | . . . . . . . 5 . . . . . . 4 3 2 . . . . . . . . . 28 Heat Flow Errors 22 | . . . . . . . 3 . 1 . . . . 3 . . . . . . . . . . . 15 Energy Discharges 15 | . . . . . . . 1 . . . . . . 1 1 1 . . . . . . . . . 11 Parts Rejected 1 | . . . . . . . . . . . . . . . . . . . . . . . . . . 1 Parts Fused 2 | . . . . . . . . . . . . . . . . . . . . . . . . . . 2 Data Loss (minor) 19 | . . . . . . . 1 . . . . . . . 1 . . . . . . . . . . 17 Data Loss (major) 1 | . . . . . . . . . . . . . . . . . . . . . . . . . . 1 Misfires 2 | . . . . . . . 2 . . . . . . . . . . . . . . . . . . . Alerts 6 | . . . . . . . 1 . . . . . . . . . . . . . . . . . . 5 Misdirections 5 | . . . . . . . . . . . . . . 2 1 . . . . . . . . . . 2 Weapon Failures 7 | . . . . . . . . . . . . . . . . 1 . . . . . . . . . 6 Overload Shots 4 | . . . . . . . . . . . . . . . . . . . . . . . . 1 . 3 Effects 1 | . . . . . . . . . . . . . . . . . . . . . . . . . . 1 Heat Surge 1 | . . . . . . . . . . . . . . . . . . . . . . . . . . 1 Overflow Damage 3074 | . . . . 36 . . . 284 . . . 42 . 61 . . 82 . 125 . . 539 174 . 56 1675 Projectiles 498 | . . . . . . . . . . . . . . . . . . . . . . . . . . 498 Explosions 1224 | . . . . 36 . . . . . . . . . . . . . . . . . 11 . . . 1177 Melee 1352 | . . . . . . . . 284 . . . 42 . 61 . . 82 . 125 . . 528 174 . 56 . Knockbacks 14 | . . . . . . . . . . . . . . . . . 1 . . . . . 1 . . 12 Impact 1 | . . . . . . . . . . . . . . . . . 1 . . . . . . . . . Kinetic 13 | . . . . . . . . . . . . . . . . . . . . . . . 1 . . 12 Secondary . | . . . . . . . . . . . . . . . . . . . . . . . . . . . Self-Inflicted Damage 170 | . . . . 45 . . . 77 . . . . . . . . . . . . . . . . . 48 Shots 6 | . . . . 3 . . . 2 . . . . . . . . . . . . . . . . . 1 Rammed 12 | . 4 3 . . . 1 3 1 . . . . . . . . . . . . . . . . . . Targets Rammed 13 | . 4 3 . . . 2 3 1 . . . . . . . . . . . . . . . . . . Kicked . | . . . . . . . . . . . . . . . . . . . . . . . . . . . Crushed 1 | . . . . . . 1 . . . . . . . . . . . . . . . . . . . . Highest Temperature 388 | . 156 . 117 375 . 231 388 113 171 . . . . 247 . . 376 86 37 . . . . 88 29 206 Average Temperature 85 | . 69 . 48 168 . 123 84 38 56 . . . . 93 . . 130 37 26 . . . . 63 13 104 Received Heat Transfer 1690 | . 267 . 45 20 . . 714 99 198 . . 9 . 57 . . 18 . . . . . . 9 . 254 Thermoelectric Energy+ 794 | . . . . . . . . . . . . . . . . . . . . . . . . . . 794 Effects 4 | . . . . . . . 3 . . . . . . . . . 1 . . . . . . . . . Shutdowns 2 | . . . . . . . 1 . . . . . . . . . 1 . . . . . . . . . Interference 2 | . . . . . . . 2 . . . . . . . . . . . . . . . . . . . Siege Activations . | . . . . . . . . . . . . . . . . . . . . . . . . . . . Martial Activations . | . . . . . . . . . . . . . . . . . . . . . . . . . . . Shielding Activations . | . . . . . . . . . . . . . . . . . . . . . . . . . . . Robots Disrupted . | . . . . . . . . . . . . . . . . . . . . . . . . . . . Combat Hostiles . | . . . . . . . . . . . . . . . . . . . . . . . . . . . Robots Corrupted 2 | . . . . . . . . 1 . . . . . . . . . . 1 . . . . . . . Combat Hostiles . | . . . . . . . . . . . . . . . . . . . . . . . . . . . Parts Fried 5 | . . . . . . . . 2 . . . . . . . . 2 . 1 . . . . . . . Impact Corruptions 10 | . . . . . . . . 6 . . . . . . . . 2 . 2 . . . . . . . Robots Melted 5 | . . . . . . . . . . . . . . . . . . . . . . . . . . 5 Combat Hostiles 4 | . . . . . . . . . . . . . . . . . . . . . . . . . . 4 Parts Melted 14 | . . . . . . 1 1 . . . . . . . . . . . . . . . . . . 12 Heat Transferred 5474 | . 225 . 345 220 . 95 1490 . . . . . . . . . . . . . . . . 37 . 3062 Parts Sabotaged 1 | . . . . . . . . . . . . . . . . . . . . . . . . . . 1 Parts Stolen . | . . . . . . . . . . . . . . . . . . . . . . . . . . . Parts Stripped . | . . . . . . . . . . . . . . . . . . . . . . . . . . . Power Chain Reactions 1 | . . . . . . . . 1 . . . . . . . . . . . . . . . . . . Alert | -11 -10 -10 -9 -9 -9 -8 -8 -7 -7 -7 -7 -5 -5 -5 -5 -5 -5 -4 -4 -4 -4 -3 -3 -2 -2 -2 ------- Run | Yrd Mat Min Mat Min Exi Min Mat Fac Sto Rec Scr Fac Was Fac Upp Upp War Pro Fac Was Fac Res Tes Res Qua Frg Maximum Alert Level 5 | . 1 . . . . . . 1 1 . . . . . . . . . 1 . . . . 1 2 5 Low Security (%) 57 | 100 89 100 100 100 . 100 100 92 73 100 . 100 100 100 . . . . 42 100 100 100 100 70 2 . Level 1 11 | . 10 . . . . . . 7 26 . . . . . . . . . 57 . . . . 30 74 10 Level 2 3 | . . . . . . . . . . . . . . . . . . . . . . . . . 23 4 Level 3 3 | . . . . . . . . . . . . . . . . . . . . . . . . . . 11 Level 4 7 | . . . . . . . . . . . . . . . . . . . . . . . . . . 22 Level 5 16 | . . . . . . . . . . . . . . . . . . . . . . . . . . 50 High Security . | . . . . . . . . . . . . . . . . . . . . . . . . . . . Max Security . | . . . . . . . . . . . . . . . . . . . . . . . . . . . Peak Influence 7058 | . 302 114 130 46 . 70 198 339 327 127 . 17 2 143 . . . . 226 81 52 142 190 366 548 7058 Initial 308 | . . 114 . 40 . . . 86 154 127 . . 2 . . . . . 150 75 52 10 63 106 200 308 Average 958 | . 84 29 29 13 . 13 35 105 194 119 . 6 1 86 . . . . 185 77 36 42 91 172 331 2680 Influence Increases 12216 | . 644 . 244 92 . 100 729 403 263 . . 46 . 252 . . 5 30 296 10 8 213 237 350 660 7634 Destroy 0b10 Robot/C 7200 | . 400 . 140 40 . 80 480 60 . . . . . 20 . . . . . . . 60 100 120 280 5420 Destroy 0b10 Robot/NC 455 | . 25 . 10 . . 10 40 40 . . . . . 20 . . 5 . 5 . . 35 5 45 20 195 Destroy Leader 1234 | . 84 . 34 10 . 10 128 14 . . . . . 4 . . . . 2 . . 18 10 48 96 776 Allied During Kill 15 | . . . . . . . . . . . . . . . . . . . . . . . 15 . . . Successful Hack 175 | . 43 . 30 . . . 31 30 7 . . 4 . 9 . . . . . . . . 14 7 . . Select Force Hacks 90 | . 60 . 30 . . . . . . . . . . . . . . . . . . . . . . . Disable Machine 660 | . . . . . . . 15 30 15 . . 15 . 30 . . . . . . . . 75 . 105 375 Anti-Garrison Action 150 | . . . . . . . . . . . . . . . . . . . . . . . . . . 150 Destroy Structure 932 | . 2 . . 42 . . 5 19 1 . . 12 . 34 . . . . 34 10 8 70 18 40 54 583 Advance Influence 150 | . . . . . . . . . . . . . . . . . . . 150 . . . . . . . Partial Spotted 405 | . . . . . . . 15 90 45 . . 15 . . . . . . 45 . . 15 . 60 75 45 Lose Combat Pursuer 750 | . 30 . . . . . 15 120 195 . . . . 135 . . . 30 60 . . 15 . 30 30 90 Influence Decreases 5159 | . 350 294 140 196 . 100 538 255 275 220 107 40 6 160 92 . 5 30 80 151 63 121 159 184 468 1125 Entered New Map 1583 | . . 180 . 64 . . . 105 185 200 107 . 4 . 35 . . . . 141 23 10 49 84 156 240 Time Decay 3131 | . 350 114 140 62 . 90 413 120 70 20 . 40 2 160 57 . 5 30 80 10 20 111 110 90 302 735 Lost Part 357 | . . . . 30 . 10 77 30 20 . . . . . . . . . . . 20 . . 10 10 150 Lost Ally 40 | . . . . 40 . . . . . . . . . . . . . . . . . . . . . . Purge Threat 48 | . . . . . . . 48 . . . . . . . . . . . . . . . . . . . Squads Dispatched 53 | . 5 1 1 . . . 6 3 3 . . 3 . 5 . . . . 5 . 1 5 2 2 6 5 Investigation 26 | . 4 1 1 . . . 3 1 1 . . 2 . 3 . . . . 4 . 1 3 . . . 2 Extermination 9 | . . . . . . . . . 1 . . 1 . 1 . . . . 1 . . 1 . 1 2 1 Reinforcement 11 | . 1 . . . . . . 2 1 . . . . 1 . . . . . . . 1 1 1 1 2 Assault . | . . . . . . . . . . . . . . . . . . . . . . . . . . . Garrison 7 | . . . . . . . 3 . . . . . . . . . . . . . . . 1 . 3 . Intercept . | . . . . . . . . . . . . . . . . . . . . . . . . . . . Searches Triggered . | . . . . . . . . . . . . . . . . . . . . . . . . . . . Construction Impeded . | . . . . . . . . . . . . . . . . . . . . . . . . . . . Haulers Reinforced 2 | . . . . . . . . . . . . . . . . . . . . . . . 1 . 1 . Active Scanning Responses . | . . . . . . . . . . . . . . . . . . . . . . . . . . . Cargo Convoy Interrupts . | . . . . . . . . . . . . . . . . . . . . . . . . . . . Stealth | -11 -10 -10 -9 -9 -9 -8 -8 -7 -7 -7 -7 -5 -5 -5 -5 -5 -5 -4 -4 -4 -4 -3 -3 -2 -2 -2 --------- Run | Yrd Mat Min Mat Min Exi Min Mat Fac Sto Rec Scr Fac Was Fac Upp Upp War Pro Fac Was Fac Res Tes Res Qua Frg Distress Signals 29 | . 1 . . . . . 2 . 2 . . 1 . 2 . . 4 . 1 . . . 2 1 . 13 Communications Jammed 34 | . . . . . . . . . . . . . . . . . . . . . . . 2 30 . 2 Distress Signals 34 | . . . . . . . . . . . . . . . . . . . . . . . 2 30 . 2 Times Spotted 625 | . 32 . 12 22 . 4 40 17 20 . . 5 4 11 1 1 45 3 15 5 3 6 5 21 14 339 Peak Tracking Total 14 | . 5 . 3 14 . 4 5 13 13 . . 4 4 7 1 1 12 3 14 5 3 5 4 10 4 14 Tactical Retreats 22 | . 2 . . . . . 1 3 3 . . . . 3 . . . 1 1 . . 1 . 1 2 4 Traps | -11 -10 -10 -9 -9 -9 -8 -8 -7 -7 -7 -7 -5 -5 -5 -5 -5 -5 -4 -4 -4 -4 -3 -3 -2 -2 -2 ------- Run | Yrd Mat Min Mat Min Exi Min Mat Fac Sto Rec Scr Fac Was Fac Upp Upp War Pro Fac Was Fac Res Tes Res Qua Frg Traps Triggered 29 | . 2 . . . . . 5 1 2 . . 1 . 3 . . 1 . 1 . 1 1 1 . 1 9 Indirectly . | . . . . . . . . . . . . . . . . . . . . . . . . . . . Trap Hack Attempts . | . . . . . . . . . . . . . . . . . . . . . . . . . . . Triggered . | . . . . . . . . . . . . . . . . . . . . . . . . . . . Disarmed . | . . . . . . . . . . . . . . . . . . . . . . . . . . . Reprogrammed . | . . . . . . . . . . . . . . . . . . . . . . . . . . . Reused . | . . . . . . . . . . . . . . . . . . . . . . . . . . . Traps Extracted . | . . . . . . . . . . . . . . . . . . . . . . . . . . . Installed . | . . . . . . . . . . . . . . . . . . . . . . . . . . . Triggered . | . . . . . . . . . . . . . . . . . . . . . . . . . . . Machines | -11 -10 -10 -9 -9 -9 -8 -8 -7 -7 -7 -7 -5 -5 -5 -5 -5 -5 -4 -4 -4 -4 -3 -3 -2 -2 -2 ---------- Run | Yrd Mat Min Mat Min Exi Min Mat Fac Sto Rec Scr Fac Was Fac Upp Upp War Pro Fac Was Fac Res Tes Res Qua Frg Machines Disabled 56 | . . . . . . . 1 2 1 . . 1 . 2 . . 1 . . . . . 5 1 7 35 Max in Single Turn 3 | . . . . . . . 1 1 1 . . 1 . 1 . . 1 . . . . . 1 1 1 3 Garrison Access 1 | . . . . . . . . . . . . . . . . . . . . . . . . . . 1 Machines Repaired . | . . . . . . . . . . . . . . . . . . . . . . . . . . . Machines Dismantled 1 | . . . . . . . . . . . . . . . . . 1 . . . . . . . . . Machines Sabotaged . | . . . . . . . . . . . . . . . . . . . . . . . . . . . Overloaded Fab Kills . | . . . . . . . . . . . . . . . . . . . . . . . . . . . Hacking | -11 -10 -10 -9 -9 -9 -8 -8 -7 -7 -7 -7 -5 -5 -5 -5 -5 -5 -4 -4 -4 -4 -3 -3 -2 -2 -2 --------- Run | Yrd Mat Min Mat Min Exi Min Mat Fac Sto Rec Scr Fac Was Fac Upp Upp War Pro Fac Was Fac Res Tes Res Qua Frg Machines Accessed 68 | . 6 1 4 . 1 . 8 4 2 . 1 3 . 8 . 1 1 . 7 . 2 6 2 3 4 4 Terminals 36 | . 4 . 3 . . . 7 3 2 . . 1 . 4 . . . . 1 . 1 . 2 3 3 2 Fabricators 3 | . . . . . . . . 1 . . . . . . . . . . 1 . . 1 . . . . Repair Stations 2 | . . . . . . . 1 . . . . . . . . . . . 1 . . . . . . . Recycling Units 15 | . 2 . 1 . . . . . . . . 2 . 3 . . . . 3 . 1 2 . . . 1 Scanalyzers 4 | . . . . . . . . . . . . . . 1 . . . . 1 . . 2 . . . . Garrison Access 3 | . . . . . . . . . . . . . . . . . . . . . . 1 . . 1 1 Total Hacks 149 | . 17 1 8 . 1 . 21 6 4 . 4 6 . 15 . 1 1 . 16 . 3 16 5 9 10 5 Successful 80 | . 11 1 5 . 1 . 13 3 1 . 4 3 . 10 . 1 1 . 8 . 2 8 2 2 2 2 Failed 68 | . 5 . 3 . . . 8 3 3 . . 3 . 5 . . . . 8 . 1 8 3 7 8 3 Catastrophic 22 | . . . 1 . . . 1 1 3 . . . . 2 . . . . 2 . 1 3 1 2 4 1 Database Lockouts 1 | . 1 . . . . . . . . . . . . . . . . . . . . . . . . . Manual 63 | . 10 . 4 . . . 5 1 1 . . 5 . 9 . . . . 9 . 2 8 2 3 1 3 Terminals 91 | . 14 . 7 . . . 19 5 4 . . 3 . 9 . . . . 3 . 2 . 5 9 8 3 Fabricators 5 | . . . . . . . . 1 . . . . . . . . . . 2 . . 2 . . . . Repair Stations 3 | . . . . . . . 2 . . . . . . . . . . . 1 . . . . . . . Recycling Units 28 | . 3 . 1 . . . . . . . . 3 . 4 . . . . 7 . 1 8 . . . 1 Scanalyzers 10 | . . . . . . . . . . . . . . 2 . . . . 3 . . 5 . . . . Garrison Access 4 | . . . . . . . . . . . . . . . . . . . . . . 1 . . 2 1 Terminal Hacks 41 | . 8 1 3 . 1 . 9 1 1 . 4 1 . 3 . 1 1 . 1 . . . 2 1 2 1 Record 5 | . . . . . 1 . . . . . 4 . . . . . . . . . . . . . . . Robot Analysis 2 | . 2 . . . . . . . . . . . . . . . . . . . . . . . . . Prototype ID Bank 6 | . 4 . . . . . 1 . . . . . . 1 . . . . . . . . . . . . Open Door 4 | . . 1 . . . . . . 1 . . . . . . 1 1 . . . . . . . . . Branch Access Points 4 | . . . 1 . . . 1 1 . . . . . . . . . . . . . . . 1 . . Alert Level 1 | . . . . . . . . . . . . . . . . . . . . . . . 1 . . . Unreport Threat 1 | . . . . . . . 1 . . . . . . . . . . . . . . . . . . . Locate Traps 4 | . . . . . . . 2 . . . . 1 . . . . . . 1 . . . . . . . Hauler Manifests 4 | . 1 . 1 . . . 1 . . . . . . 1 . . . . . . . . . . . . Zone Layout 9 | . 1 . 1 . . . 3 . . . . . . 1 . . . . . . . . 1 . 2 . Proto ID Catalog 1 | . . . . . . . . . . . . . . . . . . . . . . . . . . 1 Fabricator Hacks 4 | . . . . . . . . 1 . . . . . . . . . . 1 . . 2 . . . . Network Status 1 | . . . . . . . . 1 . . . . . . . . . . . . . . . . . . Load Schematic 2 | . . . . . . . . . . . . . . . . . . . 1 . . 1 . . . . Build 1 | . . . . . . . . . . . . . . . . . . . . . . 1 . . . . Repair Station Hacks 2 | . . . . . . . 2 . . . . . . . . . . . . . . . . . . . Scan Component 1 | . . . . . . . 1 . . . . . . . . . . . . . . . . . . . Repair 1 | . . . . . . . 1 . . . . . . . . . . . . . . . . . . . Recycling Unit Hacks . | . . . . . . . . . . . . . . . . . . . . . . . . . . . Scanalyzer 10 | . . . . . . . . . . . . . . 2 . . . . 3 . . 5 . . . . Insert Component 1 | . . . . . . . . . . . . . . . . . . . 1 . . . . . . . Analyze 1 | . . . . . . . . . . . . . . . . . . . 1 . . . . . . . Retrieve Study 8 | . . . . . . . . . . . . . . 2 . . . . 1 . . 5 . . . . Garrison Access Hacks . | . . . . . . . . . . . . . . . . . . . . . . . . . . . Unauthorized Hacks 23 | . 3 . 2 . . . 2 1 . . . 2 . 5 . . . . 3 . 2 1 . 1 . 1 Terminals 9 | . 1 . 1 . . . 2 1 . . . . . 2 . . . . . . 1 . . 1 . . Botnet 9 | . 1 . 1 . . . 2 1 . . . . . 2 . . . . . . 1 . . 1 . . Fabricators 1 | . . . . . . . . . . . . . . . . . . . 1 . . . . . . . Recompile 1 | . . . . . . . . . . . . . . . . . . . 1 . . . . . . . Repair Stations . | . . . . . . . . . . . . . . . . . . . . . . . . . . . Recycling Units 13 | . 2 . 1 . . . . . . . . 2 . 3 . . . . 2 . 1 1 . . . 1 Tunnel 3 | . 2 . 1 . . . . . . . . . . . . . . . . . . . . . . . Fedlink 10 | . . . . . . . . . . . . 2 . 3 . . . . 2 . 1 1 . . . 1 Scanalyzers . | . . . . . . . . . . . . . . . . . . . . . . . . . . . Garrison Access . | . . . . . . . . . . . . . . . . . . . . . . . . . . . Data Cores Recovered 4 | . . . . . . . 1 . . . . . . . . . . . . . . . . 1 1 1 Used 2 | . . . . . . . . . . . . . . . . . . . . . . . . 1 . 1 Hacking Detections 39 | . 2 . 3 . . . 6 3 2 . . 1 . 4 . . . . 3 . 1 3 2 3 4 2 Full Trace Events 4 | . . . . . . . 1 1 . . . . . . . . . . 1 . . 1 . . . . Feedback Events 1 | . . . . . . . . 1 . . . . . . . . . . . . . . . . . . Corruption 1 | . . . . . . . . 1 . . . . . . . . . . . . . . . . . . Feedback Blocked . | . . . . . . . . . . . . . . . . . . . . . . . . . . . Robot Schematics Acquired 4 | . . . . . . . . . . . . . . . . . . . . . . . . . . 4 Robots Built . | . . . . . . . . . . . . . . . . . . . . . . . . . . . Authchips . | . . . . . . . . . . . . . . . . . . . . . . . . . . . Time . | . . . . . . . . . . . . . . . . . . . . . . . . . . . Total Robot Build Rating . | . . . . . . . . . . . . . . . . . . . . . . . . . . . Part Schematics Acquired 8 | . . . . . . . . . . . . . . . . . . . 1 . . . . . . 7 Parts Built 1 | . . . . . . . . . . . . . . . . . . . . . . 1 . . . . Authchips 1 | . . . . . . . . . . . . . . . . . . . . . . 1 . . . . Time 53 | . . . . . . . . . . . . . . . . . . . . . . 53 . . . . Total Part Build Rating 6 | . . . . . . . . . . . . . . . . . . . . . . 6 . . . . Part Studies Acquired 8 | . . . . . . . . . . . . . . 2 . . . . 1 . . 5 . . . . Parts Repaired 1 | . . . . . . . 1 . . . . . . . . . . . . . . . . . . . Time 38 | . . . . . . . 38 . . . . . . . . . . . . . . . . . . . Parts Recycled . | . . . . . . . . . . . . . . . . . . . . . . . . . . . Recycled Matter . | . . . . . . . . . . . . . . . . . . . . . . . . . . . Retrieved Matter . | . . . . . . . . . . . . . . . . . . . . . . . . . . . Retrieved Components . | . . . . . . . . . . . . . . . . . . . . . . . . . . . Parts Scanalyzed 1 | . . . . . . . . . . . . . . . . . . . 1 . . . . . . . Part Schematics Acquired 1 | . . . . . . . . . . . . . . . . . . . 1 . . . . . . . Parts Damaged . | . . . . . . . . . . . . . . . . . . . . . . . . . . . Bothacking | -11 -10 -10 -9 -9 -9 -8 -8 -7 -7 -7 -7 -5 -5 -5 -5 -5 -5 -4 -4 -4 -4 -3 -3 -2 -2 -2 ------------ Run | Yrd Mat Min Mat Min Exi Min Mat Fac Sto Rec Scr Fac Was Fac Upp Upp War Pro Fac Was Fac Res Tes Res Qua Frg Used RIF Installer . | . . . . . . . . . . . . . . . . . . . . . . . . . . . Robots Hacked 8 | . . . . . . . . . . . . 2 . 2 . . . . 2 . 1 1 . . . . Non-combat 8 | . . . . . . . . . . . . 2 . 2 . . . . 2 . 1 1 . . . . Combat . | . . . . . . . . . . . . . . . . . . . . . . . . . . . Robot Hacks Applied 8 | . . . . . . . . . . . . 2 . 2 . . . . 2 . 1 1 . . . . find_chute 2 | . . . . . . . . . . . . 1 . . . . . . 1 . . . . . . . find_recycling 6 | . . . . . . . . . . . . 1 . 2 . . . . 1 . 1 1 . . . . Relay Couplers Released 1 | . . . . . . . . . . . . . . . . . . . . . . . . . . 1 Machine Destruction 1 | . . . . . . . . . . . . . . . . . . . . . . . . . . 1 Fabnet Peak Effective % . | . . . . . . . . . . . . . . . . . . . . . . . . . . . Robots Rewired 1 | . . . . . . . . . . . . . . . . . . . . . . . 1 . . . Allies Hacked . | . . . . . . . . . . . . . . . . . . . . . . . . . . . Hacks Repelled . | . . . . . . . . . . . . . . . . . . . . . . . . . . . Allies | -11 -10 -10 -9 -9 -9 -8 -8 -7 -7 -7 -7 -5 -5 -5 -5 -5 -5 -4 -4 -4 -4 -3 -3 -2 -2 -2 -------- Run | Yrd Mat Min Mat Min Exi Min Mat Fac Sto Rec Scr Fac Was Fac Upp Upp War Pro Fac Was Fac Res Tes Res Qua Frg Total Allies 3 | . . . . 2 . . . . . . . . . . . . . . . . . . 1 . . . Largest Group 2 | . . . . 2 . . . . . . . . . . . . . . . . . . 1 . . . Highest-Rated Group 152 | . . . . 43 . . . . . . . . . . . . . . . . . . 152 . . . Highest-Rated Ally 152 | . . . . 31 . . . . . . . . . . . . . . . . . . 152 . . . Initial UFD Resources 92 | . . . . . . . . . . . . 37 51 51 57 57 57 61 61 75 75 80 90 92 92 92 Total Orders . | . . . . . . . . . . . . . . . . . . . . . . . . . . . Ally Attacks 18 | . . . . 6 . . . . . . . . . . . . . . . . . . 12 . . . Total Damage 463 | . . . . 64 . . . . . . . . . . . . . . . . . . 399 . . . Kills 3 | . . . . 1 . . . . . . . . . . . . . . . . . . 2 . . . Allies Corrupted . | . . . . . . . . . . . . . . . . . . . . . . . . . . . Allies Melted 7 | . . . . . . . . . . . . . . . . . 1 . . . . . . . . 6 Intel | -11 -10 -10 -9 -9 -9 -8 -8 -7 -7 -7 -7 -5 -5 -5 -5 -5 -5 -4 -4 -4 -4 -3 -3 -2 -2 -2 ------- Run | Yrd Mat Min Mat Min Exi Min Mat Fac Sto Rec Scr Fac Was Fac Upp Upp War Pro Fac Was Fac Res Tes Res Qua Frg Active Infowar (turns) 5533 | . . . . . . . . . . . 11 . . 240 121 77 837 122 146 2 56 352 228 171 670 2500 Optics 1536 | . . . . . . . . . . . . . . . . . . . . . . . . . . 1536 Sensors 3612 | . . . . . . . . . . . 11 . . 240 121 77 837 122 144 2 54 349 189 110 610 746 Cloaking 165 | . . . . . . . . . . . . . . . . . . . 70 . 56 21 . . 16 2 Jamming 2078 | . . . . . . . . . . . . . . . . . . . . . . 46 228 171 670 963 ECM 2 | . . . . . . . . . . . . . . . . . . . . . . . 2 . . . Robot Analysis Total 2 | . 2 . . . . . . . . . . . . . . . . . . . . . . . . . Derelict Logs Recovered 8 | . . 3 . 2 . . . . . . . . . . 1 1 . 1 . . . . . . . . Drone Launches . | . . . . . . . . . . . . . . . . . . . . . . . . . . . Drone Recoveries . | . . . . . . . . . . . . . . . . . . . . . . . . . . . Exploration | -11 -10 -10 -9 -9 -9 -8 -8 -7 -7 -7 -7 -5 -5 -5 -5 -5 -5 -4 -4 -4 -4 -3 -3 -2 -2 -2 ------------- Run | Yrd Mat Min Mat Min Exi Min Mat Fac Sto Rec Scr Fac Was Fac Upp Upp War Pro Fac Was Fac Res Tes Res Qua Frg Turns Passed 13116 | 70 1341 480 421 239 263 447 1606 256 159 46 697 134 23 344 121 88 839 122 166 32 56 379 228 190 676 3693 Spaces Moved 14097 | 41 683 300 244 121 149 232 794 554 416 189 778 328 88 908 318 252 838 246 402 79 178 829 493 334 1349 2954 Core 4 | 4 . . . . . . . . . . . . . . . . . . . . . . . . . . Treads 2278 | 37 683 300 244 121 149 232 512 . . . . . . . . . . . . . . . . . . . Legs 1228 | . . . . . . . 65 18 . . . . . . . . . . . . . . . . . 1145 Wheels 217 | . . . . . . . 217 . . . . . . . . . . . . . . . . . . . Hover 1543 | . . . . . . . . . . . . . . . . . . . . . . . . . . 1543 Flight 8827 | . . . . . . . . 536 416 189 778 328 88 908 318 252 838 246 402 79 178 829 493 334 1349 266 Fastest Speed 12 | 50 160 152 155 155 160 160 115 23 24 24 24 24 24 20 20 20 14 14 12 21 21 21 22 22 24 28 Average Speed 59 | 149 160 158 155 158 176 182 146 26 24 24 87 25 24 23 23 23 23 23 24 23 24 21 23 22 26 58 Slowest Speed 250 | 160 160 160 155 160 240 240 240 120 24 24 96 91 24 24 24 24 24 24 27 24 25 22 97 27 31 250 Overloaded Moves 153 | . . . . . . . . . . . . . . 85 8 15 25 15 5 . . . . . . . Propulsion Burnouts . | . . . . . . . . . . . . . . . . . . . . . . . . . . . Robots Hopped 83 | . . . . . . . . 3 25 4 . 2 . 7 . 3 3 . 12 . 2 2 2 10 6 2 Potential Cave-ins 7 | . . . . 1 . . . . . . . . . . . . . . . . . . . 4 . 2 Cave-ins Triggered . | . . . . . . . . . . . . . . . . . . . . . . . . . . . Teleports 2 | . . . . . . . . . . . . . . . . . . . . . . . . . 1 1 Exploration Rate (%) 48 | 4 88 76 29 27 49 60 66 22 67 46 75 12 69 28 53 47 81 48 16 85 6 28 52 14 95 75 Regions Visited 26 Branch Regions 14 Pre-discovered Areas 7 | . 2 1 1 . 1 . . . . . . 1 . . 1 . . . . . . . . . . . Known Exits Taken 14 | . . . 1 . . 1 1 1 . . . . . 1 1 1 1 1 . . 1 1 1 1 1 . Unknown Exits Taken 8 | 1 1 1 . 1 1 . . . 1 1 1 . . . . . . . . . . . . . . . Scrap Searched 12 | . . 3 . . . . . . . . 5 . . . 3 . . 1 . . . . . . . . Spaces Dug 143 | . . . . . . . . 3 1 . . 6 . 17 10 3 1 10 15 3 3 7 3 8 11 42 Terrain Destroyed 720 | . . . . 61 . . . 25 1 . . 6 . 17 18 8 1 30 17 5 4 49 7 15 17 439 Melee 50 | . . . . . . . . 3 . . . 6 . 17 2 . 1 1 2 . . 2 2 3 7 4 Projectile 241 | . . . . . . . . . 1 . . . . . 16 8 . 29 15 5 4 13 1 11 2 136 AOE 372 | . . . . 61 . . . 22 . . . . . . . . . . . . . 34 . . . 255 Terrain Rammed . | . . . . . . . . . . . . . . . . . . . . . . . . . . . Walls Destroyed . | . . . . . . . . . . . . . . . . . . . . . . . . . . . Machines Disabled . | . . . . . . . . . . . . . . . . . . . . . . . . . . . Actions | -11 -10 -10 -9 -9 -9 -8 -8 -7 -7 -7 -7 -5 -5 -5 -5 -5 -5 -4 -4 -4 -4 -3 -3 -2 -2 -2 --------- Run | Yrd Mat Min Mat Min Exi Min Mat Fac Sto Rec Scr Fac Was Fac Upp Upp War Pro Fac Was Fac Res Tes Res Qua Frg Total 17578 | 48 820 304 259 144 149 245 1047 635 446 184 791 368 89 988 344 264 1465 277 438 86 182 987 581 395 1596 4446 Wait 1830 | . 46 . . . . 4 48 16 27 . 3 16 . 13 1 1 602 . 17 . . 77 11 11 142 795 Move 13918 | 40 682 299 243 120 148 231 793 548 367 181 777 324 87 894 317 246 832 245 380 78 174 824 488 317 1336 2947 Hop 70 | . . . . . . . . 3 23 3 . 2 . 6 . 2 2 . 10 . 1 2 2 6 6 2 Pick Up 117 | 2 13 . . . . 1 24 8 1 . . . . . 2 . 4 . 2 . . 11 5 1 8 35 Fast Attach 120 | 5 5 . . 1 . 1 12 2 2 . 5 3 1 3 . 1 2 . 1 . 1 4 4 3 9 55 Attach 109 | . . . 2 5 . 1 10 10 4 . . 4 . . . 1 1 . 1 . . 3 4 1 4 58 Detach 119 | . 3 . . . . . 10 7 3 . . 3 . 1 . . . . . . . 3 7 . 4 78 Swap 178 | . 7 1 . 2 1 . 12 4 1 . 2 2 . 9 3 4 5 1 5 2 1 20 13 13 19 51 Drop 168 | 1 6 1 . . . . 24 15 2 . 4 4 1 3 3 . 7 . 2 1 . 6 11 5 14 58 Fire 703 | . 54 . 14 16 . 5 111 1 4 . . . . . 16 9 . 30 15 5 4 20 7 35 36 321 Melee 130 | . . . . . . . . 21 . . . 10 . 32 2 . 2 1 5 . 1 17 12 3 18 6 Ram . | . . . . . . . . . . . . . . . . . . . . . . . . . . . Kick . | . . . . . . . . . . . . . . . . . . . . . . . . . . . Crush 12 | . 4 3 . . . 2 3 . . . . . . . . . . . . . . . . . . . Escape Stasis 78 | . . . . . . . . . 12 . . . . 27 . . . . . . . . . . . 39 Rewire 18 | . . . . . . . . . . . . . . . . . . . . . . . 17 . . 1 Trap . | . . . . . . . . . . . . . . . . . . . . . . . . . . . Miscellaneous 8 | . . . . . . . . . . . . . . . . . 8 . . . . . . . . . Route ------- -11/Scrapyard -10/Materials (discovered 4 exits: *Mat x2 / *Min x2) -10/Mines -9/Materials (discovered 4 exits: Mat x2 / *Min x2) -9/Mines -9/Exiles -8/Mines -8/Materials (discovered 2 exits: *Fac x2) -7/Factory (discovered 5 exits: [*Fac] / *Sto x2 / *Low x2) -7/Storage (discovered 2 exits: [*Fac] / [*Rec]) -7/Recycling -7/Scraptown (discovered 2 exits: *Fac x2) -5/Factory -5/Waste -5/Factory (discovered 3 exits: *Fac / *Upp x2) -5/Upper Caves -5/Upper Caves -5/Warlord -4/Proximity Caves -4/Factory -4/Waste -4/Factory -3/Research -3/Testing -2/Research (discovered 2 exits: *Qua x2) -2/Quarantine (discovered 3 exits: [*Acc] / [*Sec] / *Frg) -2/Protoforge 0bPrime History --------- Turn | Location | Event 22 | -11/Scrapyard | Discovered new exit (range 16) 71 | -11/Scrapyard | Entered Materials 312 | -10/Materials | Build established: Mutant 487 | -10/Materials | Discovered new exit (range 11) 622 | -10/Materials | Discovered new exit (range 16) 759 | -10/Materials | Central database locked down 909 | -10/Materials | Discovered new exit (range 10) 1067 | -10/Materials | Discovered new exit (range 10) 1412 | -10/Materials | Entered Mines 1520 | -10/Mines | Learned location of Storage (-7) 1550 | -10/Mines | Learned 8 Materials zone layouts 1767 | -10/Mines | Met a Derelict shopkeep closing up shop 1774 | -10/Mines | Learned Materials terminal intel 1866 | -10/Mines | Discovered new exit (range 16) 1892 | -10/Mines | Entered Materials 1892 | -9/Materials | Evolved 2 slots: Propulsion x1, Utility x1 1893 | -9/Materials | Identified exit to Materials 1894 | -9/Materials | Loaded intel: 12 terminal locations 2167 | -9/Materials | Identified exit to Mines 2313 | -9/Materials | Entered Mines 2340 | -9/Mines | Learned Materials stockpile data 2358 | -9/Mines | Assembled infested the area 2403 | -9/Mines | Destroyed 16 combat bots 2453 | -9/Mines | Lost 6 parts (2n3u1w) 2544 | -9/Mines | Deemed a non-threat by the Exiles lab entrance 2545 | -9/Mines | Discovered new exit (range 5) 2552 | -9/Mines | Entered Exiles 2591 | -9/Exiles | Met 8R-AWN 2618 | -9/Exiles | Met EX-HEX 2682 | -9/Exiles | Met EX-DEC 2688 | -9/Exiles | Learned location of Zion (-6) 2791 | -9/Exiles | Discovered new exit (range 10) 2815 | -9/Exiles | Entered Mines 3252 | -8/Mines | Discovered exit to Materials (range 7) 3262 | -8/Mines | Entered Materials 3262 | -8/Materials | Evolved 2 slots: Propulsion x1, Utility x1 3263 | -8/Materials | Identified exit to Factory 3684 | -8/Materials | Repaired Imp. Light Armor Plating 3699 | -8/Materials | Build established: Scavenger-Mutant 4485 | -8/Materials | Lost 3 parts (1p2n) 4659 | -8/Materials | Garrison activated, responded to threat 4779 | -8/Materials | Destroyed 7 combat bots 4849 | -8/Materials | Discovered exit to Factory (range 10) 4868 | -8/Materials | Entered Factory 4868 | -7/Factory | Evolved 2 slots: Power x1, Propulsion x1 5056 | -7/Factory | Discovered new exit (range 4) 5065 | -7/Factory | Discovered new exit (range 6) 5069 | -7/Factory | Identified exit to Storage 5069 | -7/Factory | Identified exit to Lower Caves 5100 | -7/Factory | Discovered new exit (range 12) 5124 | -7/Factory | Entered Storage 5144 | -7/Storage | Lost 3 parts (1p1u1w) 5178 | -7/Storage | Build established: Sprinter 5235 | -7/Storage | Discovered new exit (range 16) 5282 | -7/Storage | Used back door to open Recycling access 5282 | -7/Storage | Discovered new exit (range 4) 5283 | -7/Storage | Entered Recycling 5322 | -7/Recycling | Scanned before Scraplab entrance 5326 | -7/Recycling | Entered Scraplab 5328 | -7/Recycling | Discovered new exit (range 3) 5329 | -7/Recycling | Entered Scraptown 5329 | -7/Scraptown | System corruption cleaned by C-Scrubber 5405 | -7/Scraptown | Visited UFD Registry 5405 | -7/Scraptown | Registered with UFD as "Biorigger" 5423 | -7/Scraptown | Visited The Evicted 5446 | -7/Scraptown | Visited Cyclists 5453 | -7/Scraptown | Entered Cyclist Reading Room 5607 | -7/Scraptown | Discovered new exit (range 11) 5636 | -7/Scraptown | Build established: Mutant 5726 | -7/Scraptown | Visited Science Guys 5742 | -7/Scraptown | Visited Junk Cannon Lab 5758 | -7/Scraptown | Visited DA-N13 Charitable Foundation 5767 | -7/Scraptown | Found DCF Scrap (30 items) 5789 | -7/Scraptown | Visited Derelict Rescue Squad 5807 | -7/Scraptown | Visited Infowarlord's Domain 5812 | -7/Scraptown | Found Exp. Sensor Array 5830 | -7/Scraptown | Visited Abandonware Association 5837 | -7/Scraptown | Learned abandonware demo "OVRCLOCK.EXE" 5840 | -7/Scraptown | Learned abandonware demo "HACKBUD.EXE" 5840 | -7/Scraptown | Learned abandonware demo "POISON.EXE" 5867 | -7/Scraptown | Visited Junk Repository 5898 | -7/Scraptown | Visited Observation Area 5967 | -7/Scraptown | Met Optimus 5967 | -7/Scraptown | Accepted into 0bPrime 6024 | -7/Scraptown | Discovered new exit (range 3) 6026 | -7/Scraptown | Entered Factory 6026 | -5/Factory | Evolved 4 slots: Propulsion x1, Utility x3 6076 | -5/Factory | Loaded intel: 8 recycling unit locations 6090 | -5/Factory | Learned location of Protoforge (-2) 6160 | -5/Factory | Manually triggered Chute Trap 6160 | -5/Factory | Sucked down chute 6160 | -5/Factory | Entered Waste 6165 | -5/Waste | Spotted C-40 Crusher 6171 | -5/Waste | Spotted C-40 Crusher 6173 | -5/Waste | Spotted C-40 Crusher 6174 | -5/Waste | Spotted C-40 Crusher 6175 | -5/Waste | EMP discharged 6175 | -5/Waste | System corruption reached 10% 6178 | -5/Waste | Found Corrupted Imp. Powered Armor 6181 | -5/Waste | Spotted C-40 Crusher 6181 | -5/Waste | Discovered new exit (range 10) 6183 | -5/Waste | Entered Factory 6224 | -5/Factory | Found Prototype Processor 6224 | -5/Factory | Identified Exp. Targeting Computer 6270 | -5/Factory | Discovered new exit (range 7) 6271 | -5/Factory | Identified exit to Factory 6291 | -5/Factory | Spotted B-75 Beast 6327 | -5/Factory | Build established: Sprinter 6363 | -5/Factory | Discovered new exit (range 5) 6366 | -5/Factory | Identified exit to Upper Caves 6385 | -5/Factory | Discovered exit to Upper Caves (range 10) 6431 | -5/Factory | Loaded intel: 8 recycling unit locations 6527 | -5/Factory | Entered Upper Caves 6627 | -5/Upper Caves | Found DCF Scrap (13 items) 6646 | -5/Upper Caves | Discovered new exit (range 7) 6648 | -5/Upper Caves | Attracted the attention of an 0b10 checkpoint 6648 | -5/Upper Caves | Identified exit to Upper Caves 6648 | -5/Upper Caves | Entered another Upper Caves area 6657 | -5/Upper Caves | Found Alien Artifact 6657 | -5/Upper Caves | Identified Core Expander 6657 | -5/Upper Caves | Installed Core Expander, added new Utility slot 6682 | -5/Upper Caves | Learned Factory emergency access door positions 6715 | -5/Upper Caves | Spotted B-75 Beast 6729 | -5/Upper Caves | Discovered new exit (range 9) 6730 | -5/Upper Caves | Identified exit to Warlord 6733 | -5/Upper Caves | Encountered a Warlord checkpoint 6736 | -5/Upper Caves | Entered Warlord 6745 | -5/Warlord | System corruption cleaned by Quarantine Array 6816 | -5/Warlord | Visited the Vortex Lab 6819 | -5/Warlord | Found Prototype Piercing Weapon 6823 | -5/Warlord | Found Prototype Piercing Weapon 6832 | -5/Warlord | Warlord's base attacked by MAIN.C 6911 | -5/Warlord | Found Prototype Hackware 7071 | -5/Warlord | Warlord forces counterattacked 7154 | -5/Warlord | Lost 14 allies 7316 | -5/Warlord | Spotted Executioner 7335 | -5/Warlord | Lost 6 allies 7360 | -5/Warlord | Spotted B-86 Titan 7360 | -5/Warlord | Spotted B-75 Beast 7407 | -5/Warlord | Spotted Striker 7507 | -5/Warlord | Warlord base infiltrated, sounded retreat 7571 | -5/Warlord | Spotted Executioner 7571 | -5/Warlord | Spotted Striker 7574 | -5/Warlord | Discovered new exit (range 8) 7575 | -5/Warlord | Identified exit to Proximity Caves 7575 | -5/Warlord | Entered Proximity Caves 7648 | -4/Proximity Caves | Spotter reported a threat 7697 | -4/Proximity Caves | Entered Factory 7697 | -4/Factory | Evolved 2 slots: Propulsion x1, Utility x1 7697 | -4/Factory | Identified Ghost Barrier 7710 | -4/Factory | Discovered new exit (range 5) 7713 | -4/Factory | Identified exit to Upper Caves 7776 | -4/Factory | Loaded intel: 8 recycling unit locations 7863 | -4/Factory | Manually triggered Chute Trap 7863 | -4/Factory | Sucked down chute 7863 | -4/Factory | Entered Waste 7871 | -4/Waste | Spotted C-40 Crusher 7875 | -4/Waste | Spotted C-40 Crusher 7878 | -4/Waste | EMP discharged 7881 | -4/Waste | Spotted C-40 Crusher 7883 | -4/Waste | Spotted C-40 Crusher 7888 | -4/Waste | Discovered new exit (range 12) 7890 | -4/Waste | Spotted C-40 Crusher 7890 | -4/Waste | Spotted C-40 Crusher 7891 | -4/Waste | Identified exit to Factory 7895 | -4/Waste | Entered Factory 7929 | -4/Factory | Discovered new exit (range 8) 7942 | -4/Factory | Found Prototype Hackware 7942 | -4/Factory | Identified Exp. System Shield 7945 | -4/Factory | Loaded intel: 8 recycling unit locations 7951 | -4/Factory | Identified exit to Research 7951 | -4/Factory | Entered Research 7951 | -3/Research | Evolved 2 slots: Utility x2 8009 | -3/Research | Identified Vortex Lance (x2) 8064 | -3/Research | Spotted B-86 Titan 8127 | -3/Research | Fabricated Imp. Powered Armor (x1) 8133 | -3/Research | Build established: Hacker-Sprinter 8141 | -3/Research | Found Prototype Device 8141 | -3/Research | Identified Exp. Shield Generator 8301 | -3/Research | Discovered new exit (range 6) 8304 | -3/Research | Identified exit to Testing 8308 | -3/Research | Loaded intel: 5 recycling unit locations 8330 | -3/Research | Entered Testing 8348 | -3/Testing | Found Prototype Device 8348 | -3/Testing | Identified Exp. ECM Suite 8367 | -3/Testing | Found Prototype Ballistic Cannon 8367 | -3/Testing | Identified Perforator 8387 | -3/Testing | Spotted Striker 8405 | -3/Testing | Found Prototype Ballistic Gun 8406 | -3/Testing | Identified Hyp. Multirail 8467 | -3/Testing | Discovered new exit (range 9) 8496 | -3/Testing | Identified exit to Research 8519 | -3/Testing | Rewired PY-F7IXO1MVGC 8528 | -3/Testing | Found Prototype Energy Cannon 8528 | -3/Testing | Identified Cld. Nova Cannon 8540 | -3/Testing | Garrison activated, responded to threat 8558 | -3/Testing | Entered Research 8558 | -2/Research | Evolved 2 slots: Utility x1, Weapon x1 8647 | -2/Research | Spotted B-90 Cyclops 8723 | -2/Research | Identified exit to Quarantine 8745 | -2/Research | Spotted B-90 Cyclops 8748 | -2/Research | Entered Quarantine 8755 | -2/Quarantine | Found Alien Artifact 8770 | -2/Quarantine | Found Prototype Launcher 8770 | -2/Quarantine | Identified Enh. Gamma Bomb Array 8786 | -2/Quarantine | Found Alien Artifact 8786 | -2/Quarantine | Identified Dimensional Node Initializer 8786 | -2/Quarantine | Initialized slip node 8789 | -2/Quarantine | Found Alien Artifact 8789 | -2/Quarantine | Identified Transdimensional Reconstructor 8789 | -2/Quarantine | Warped through subspace to slip node 8793 | -2/Quarantine | Found Alien Artifact 8795 | -2/Quarantine | Found Dimensional Node Initializer 8828 | -2/Quarantine | Cryocooling Duct disabled 8840 | -2/Quarantine | Build established: Scientist-Sprinter 8843 | -2/Quarantine | Ambient heat levels rising (+20) 8843 | -2/Quarantine | Non-combat units ordered to evacuate 8953 | -2/Quarantine | Garrison activated, responded to threat 9031 | -2/Quarantine | Found Alien Artifact 9058 | -2/Quarantine | Cryocooling Duct disabled 9073 | -2/Quarantine | Ambient heat levels rising (+20) 9073 | -2/Quarantine | Combat units ordered to evacuate 9095 | -2/Quarantine | Discovered new exit (range 10) 9140 | -2/Quarantine | Found Alien Artifact 9173 | -2/Quarantine | Quarantine Guard activated 9208 | -2/Quarantine | Spotted Quarantine Guard 9211 | -2/Quarantine | Destroyed Quarantine Guard 9227 | -2/Quarantine | Spotted Quarantine Guard 9227 | -2/Quarantine | Spotted Quarantine Guard 9249 | -2/Quarantine | Destroyed Quarantine Guard 9264 | -2/Quarantine | Destroyed Quarantine Guard 9269 | -2/Quarantine | Destroyed Quarantine Guard 9272 | -2/Quarantine | Spotted Quarantine Guard 9295 | -2/Quarantine | Build established: Hacker-Sprinter 9305 | -2/Quarantine | Destroyed Quarantine Guard 9361 | -2/Quarantine | Spotted Quarantine Guard 9362 | -2/Quarantine | Destroyed Quarantine Guard 9376 | -2/Quarantine | Found Alien Energy Cannon 9393 | -2/Quarantine | Spotted Fortress 9416 | -2/Quarantine | Destroyed Quarantine Guard 9418 | -2/Quarantine | Discovered new exit (range 8) 9418 | -2/Quarantine | Spotted Quarantine Guard 9418 | -2/Quarantine | Destroyed Quarantine Guard 9420 | -2/Quarantine | Discovered new exit (range 5) 9421 | -2/Quarantine | Identified exit to Protoforge 9424 | -2/Quarantine | Entered Protoforge 9443 | -2/Protoforge | Identified Subatomic Replicator 9443 | -2/Protoforge | Used Subatomic Replicator to create Alien Artifact 9494 | -2/Protoforge | Discovered new exit (range 13) 9657 | -2/Protoforge | Found Prototype Protection 9658 | -2/Protoforge | Identified Cep. Core Shell 9690 | -2/Protoforge | Spotted EXE-6 9690 | -2/Protoforge | Spotted EXE-6 9706 | -2/Protoforge | Superfortress began startup sequence 9727 | -2/Protoforge | UFD initiated attack on Protoforge (Readiness: High) 9727 | -2/Protoforge | Loaded intel: 3 recycling unit locations 9752 | -2/Protoforge | Destroyed EXE-6 9756 | -2/Protoforge | Found Prototype Ballistic Gun 9756 | -2/Protoforge | Identified Cep. XC Strikerail 9764 | -2/Protoforge | Optimus greeted in Protoforge 9765 | -2/Protoforge | Found Prototype Processor 9765 | -2/Protoforge | Identified Exp. Core Analyzer 9768 | -2/Protoforge | Found Prototype Processor 9768 | -2/Protoforge | Identified Exp. Armor Integrity Analyzer 9782 | -2/Protoforge | Found Prototype Device 9782 | -2/Protoforge | Identified Exp. Kinecellerator 9792 | -2/Protoforge | Initialized slip node 9839 | -2/Protoforge | Found Cep. XC Strikerail 9840 | -2/Protoforge | Found Cep. XC Strikerail 9842 | -2/Protoforge | Found Cep. XC Strikerail 9873 | -2/Protoforge | Identified Supercharged TR 9873 | -2/Protoforge | Warped through subspace to slip node 9874 | -2/Protoforge | Met 7R-MNS 9874 | -2/Protoforge | Spotted Hotshot 9877 | -2/Protoforge | Spotted Executioner 9917 | -2/Protoforge | Spotted Hotshot 9926 | -2/Protoforge | Spotted Hotshot 9928 | -2/Protoforge | Spotted Hotshot 9929 | -2/Protoforge | Destroyed Hotshot 9929 | -2/Protoforge | Spotted Hotshot 9931 | -2/Protoforge | Destroyed Hotshot 9933 | -2/Protoforge | Destroyed Hotshot 9935 | -2/Protoforge | Destroyed Hotshot 10010 | -2/Protoforge | Found Prototype Device 10018 | -2/Protoforge | Forge Plexus network access discovered 10022 | -2/Protoforge | Spotted Decapitator 10022 | -2/Protoforge | Spotted Decapitator 10022 | -2/Protoforge | Spotted Decapitator 10022 | -2/Protoforge | Spotted Decapitator 10024 | -2/Protoforge | Spotted Immortal 10024 | -2/Protoforge | Spotted Immortal 10029 | -2/Protoforge | Destroyed Decapitator 10048 | -2/Protoforge | Destroyed Decapitator 10063 | -2/Protoforge | Destroyed Decapitator 10076 | -2/Protoforge | Build established: Scavenger-Sprinter 10119 | -2/Protoforge | Found Cep. Antigrav Storage Unit 10121 | -2/Protoforge | Found Cep. NT7 Matterbank 10132 | -2/Protoforge | Found Cep. Matter Streamer 10136 | -2/Protoforge | Identified Crosscalibrator 10247 | -2/Protoforge | Found Cep. Networked Targeting System 10249 | -2/Protoforge | Destroyed 9 combat bots 10271 | -2/Protoforge | Spotted Decapitator 10271 | -2/Protoforge | Spotted Decapitator 10272 | -2/Protoforge | Spotted Decapitator 10276 | -2/Protoforge | Destroyed Decapitator 10298 | -2/Protoforge | Found Cep. Helical Railcannon 10299 | -2/Protoforge | Found Cep. Heavy Railcannon 10302 | -2/Protoforge | Found Cep. Plasma Driver 10307 | -2/Protoforge | Found Cep. Plasma Driver 10309 | -2/Protoforge | Found Cep. Plasma Driver 10311 | -2/Protoforge | Found Faulty Cep. Plasma Driver 10387 | -2/Protoforge | Found Faulty Cep. Zero-point Core 10392 | -2/Protoforge | Spotted V617-f 10394 | -2/Protoforge | Spotted V764-p 10395 | -2/Protoforge | Spotted V272-e 10395 | -2/Protoforge | Spotted V921-j 10411 | -2/Protoforge | Destroyed V617-f 10420 | -2/Protoforge | Destroyed V921-j 10424 | -2/Protoforge | Destroyed V272-e 10430 | -2/Protoforge | Found Cep. Combat Aerolev Unit 10433 | -2/Protoforge | Found Corrupted Cep. Gyrokinetic System 10439 | -2/Protoforge | Found Cep. Zero-point Core 10441 | -2/Protoforge | Found Cep. Zero-point Core 10464 | -2/Protoforge | Spotted Decapitator 10464 | -2/Protoforge | Spotted Decapitator 10465 | -2/Protoforge | Destroyed Decapitator 10472 | -2/Protoforge | Destroyed Decapitator 10485 | -2/Protoforge | Found Cep. Smart ZDS 10488 | -2/Protoforge | Found Faulty Cep. Rapid Grenade Launcher 10497 | -2/Protoforge | Found Faulty Cep. Rapid Grenade Launcher 10576 | -2/Protoforge | Spotted AP7-3 10576 | -2/Protoforge | Spotted AP7-3 10614 | -2/Protoforge | Destroyed AP7-3 10620 | -2/Protoforge | System corruption reached 10% 10636 | -2/Protoforge | Destroyed AP7-3 10649 | -2/Protoforge | Found Prototype Processor 10649 | -2/Protoforge | Identified Exp. Target Analyzer 10669 | -2/Protoforge | Found Cep. Thermoelectric Network 10672 | -2/Protoforge | Found Faulty Cep. Core Analysis Suite 10674 | -2/Protoforge | Found Faulty Cep. Core Analysis Suite 10678 | -2/Protoforge | Found Faulty Cep. Thermoelectric Network 10740 | -2/Protoforge | UFD reported confirmed Drillbomb installation 10767 | -2/Protoforge | Found Cep. Biometal Exoskeleton 10779 | -2/Protoforge | UFD reported confirmed Drillbomb installation 10844 | -2/Protoforge | UFD reported confirmed Drillbomb installation 10848 | -2/Protoforge | UFD reported confirmed Drillbomb installation 10857 | -2/Protoforge | Spotted Immortal 11017 | -2/Protoforge | Destroyed Immortal 11023 | -2/Protoforge | Destroyed Immortal 11035 | -2/Protoforge | Found Prototype Processor 11035 | -2/Protoforge | Identified Exp. Melee Analysis Suite 11039 | -2/Protoforge | Found Prototype Device 11039 | -2/Protoforge | Identified Exp. Cloaking Device 11043 | -2/Protoforge | Found Prototype Device 11043 | -2/Protoforge | Identified Cep. Antimissile System 11066 | -2/Protoforge | Build established: Scavenger-Tank 11090 | -2/Protoforge | Found Cep. Chromion Battery 11203 | -2/Protoforge | Found Cep. Core Shell 11212 | -2/Protoforge | Spotted Striker 11215 | -2/Protoforge | Spotted Executioner 11215 | -2/Protoforge | Spotted Executioner 11242 | -2/Protoforge | Spotted Striker 11244 | -2/Protoforge | Spotted Striker 11254 | -2/Protoforge | Destroyed Striker 11257 | -2/Protoforge | Destroyed Striker 11260 | -2/Protoforge | Destroyed Striker 11263 | -2/Protoforge | Destroyed Executioner 11266 | -2/Protoforge | Destroyed Executioner 11268 | -2/Protoforge | Spotted Executioner 11269 | -2/Protoforge | Destroyed Executioner 11303 | -2/Protoforge | Destroyed 13 combat bots 11535 | -2/Protoforge | Destroyed Striker 11542 | -2/Protoforge | Spotted Executioner 11543 | -2/Protoforge | Destroyed Executioner 11546 | -2/Protoforge | Spotted Executioner 11547 | -2/Protoforge | Destroyed Executioner 11551 | -2/Protoforge | Spotted Executioner 11552 | -2/Protoforge | Destroyed Executioner 11583 | -2/Protoforge | Lost 3 allies 11591 | -2/Protoforge | Destroyed 12 combat bots 11591 | -2/Protoforge | Found Exp. Targeting Computer 11597 | -2/Protoforge | Found Prototype Device 11597 | -2/Protoforge | Identified Adv. Kinecellerator 11637 | -2/Protoforge | Spotted Executioner 11638 | -2/Protoforge | Destroyed Executioner 11640 | -2/Protoforge | Spotted Striker 11641 | -2/Protoforge | Destroyed Striker 11642 | -2/Protoforge | Spotted Striker 11644 | -2/Protoforge | Destroyed Striker 11665 | -2/Protoforge | UFD reported confirmed Drillbomb installation 11669 | -2/Protoforge | Spotted Executioner 11670 | -2/Protoforge | Destroyed Executioner 11693 | -2/Protoforge | Lost 4 allies 11713 | -2/Protoforge | Destroyed 13 combat bots 11728 | -2/Protoforge | Spotted Striker 11729 | -2/Protoforge | Destroyed Striker 11732 | -2/Protoforge | Spotted Striker 11779 | -2/Protoforge | Build established: Scavenger-Mutant 11782 | -2/Protoforge | Spotted Striker 11784 | -2/Protoforge | Spotted Striker 11795 | -2/Protoforge | Destroyed Striker 11799 | -2/Protoforge | Destroyed Striker 11803 | -2/Protoforge | Lost 7 allies 11806 | -2/Protoforge | Spotted Executioner 11806 | -2/Protoforge | Spotted Striker 11807 | -2/Protoforge | Destroyed Executioner 11810 | -2/Protoforge | Destroyed Striker 11853 | -2/Protoforge | Destroyed 11 combat bots 11877 | -2/Protoforge | Spotted Striker 11877 | -2/Protoforge | Spotted Striker 11877 | -2/Protoforge | Spotted Striker 11877 | -2/Protoforge | Spotted Striker 11877 | -2/Protoforge | Destroyed Striker 11882 | -2/Protoforge | Destroyed Striker 11882 | -2/Protoforge | Destroyed Striker 11882 | -2/Protoforge | Destroyed Striker 11884 | -2/Protoforge | UFD reported confirmed Drillbomb installation 11902 | -2/Protoforge | Spotted Executioner 11902 | -2/Protoforge | Spotted Striker 11903 | -2/Protoforge | Destroyed 13 combat bots 11905 | -2/Protoforge | Destroyed Striker 11908 | -2/Protoforge | Destroyed Executioner 11926 | -2/Protoforge | Destroyed 02F37-K 11950 | -2/Protoforge | Destroyed 8 combat bots 11977 | -2/Protoforge | Spotted Executioner 11977 | -2/Protoforge | Spotted Executioner 11977 | -2/Protoforge | Spotted Striker 11977 | -2/Protoforge | Spotted Striker 11977 | -2/Protoforge | Destroyed Executioner 11979 | -2/Protoforge | Destroyed Striker 11979 | -2/Protoforge | Destroyed Striker 11984 | -2/Protoforge | Destroyed Executioner 12002 | -2/Protoforge | Spotted Executioner 12002 | -2/Protoforge | Spotted Striker 12002 | -2/Protoforge | Destroyed Executioner 12007 | -2/Protoforge | Destroyed Striker 12022 | -2/Protoforge | UFD reported confirmed Drillbomb installation 12028 | -2/Protoforge | Destroyed 20 combat bots 12077 | -2/Protoforge | Spotted Executioner 12077 | -2/Protoforge | Spotted Executioner 12077 | -2/Protoforge | Spotted Executioner 12077 | -2/Protoforge | Spotted Striker 12077 | -2/Protoforge | Destroyed Executioner 12077 | -2/Protoforge | Destroyed Executioner 12083 | -2/Protoforge | Destroyed Striker 12102 | -2/Protoforge | Spotted Executioner 12102 | -2/Protoforge | Spotted Executioner 12102 | -2/Protoforge | Destroyed Executioner 12105 | -2/Protoforge | Destroyed Executioner 12126 | -2/Protoforge | Destroyed 15 combat bots 12177 | -2/Protoforge | Spotted Executioner 12177 | -2/Protoforge | Spotted Striker 12177 | -2/Protoforge | Spotted Executioner 12177 | -2/Protoforge | Spotted Executioner 12180 | -2/Protoforge | Destroyed Executioner 12180 | -2/Protoforge | Destroyed Striker 12180 | -2/Protoforge | Destroyed Executioner 12183 | -2/Protoforge | Destroyed Executioner 12192 | -2/Protoforge | UFD reported confirmed Drillbomb installation 12202 | -2/Protoforge | Spotted Executioner 12202 | -2/Protoforge | Spotted Executioner 12202 | -2/Protoforge | Destroyed Executioner 12223 | -2/Protoforge | Destroyed 15 combat bots 12277 | -2/Protoforge | Spotted Striker 12277 | -2/Protoforge | Spotted Striker 12277 | -2/Protoforge | Spotted Executioner 12277 | -2/Protoforge | Spotted Striker 12277 | -2/Protoforge | Destroyed Striker 12279 | -2/Protoforge | Destroyed Executioner 12300 | -2/Protoforge | Destroyed 10 combat bots 12302 | -2/Protoforge | Spotted Executioner 12302 | -2/Protoforge | Spotted Striker 12335 | -2/Protoforge | Lost 5 allies 12346 | -2/Protoforge | UFD reported confirmed Drillbomb installation 12377 | -2/Protoforge | Spotted Striker 12377 | -2/Protoforge | Spotted Striker 12377 | -2/Protoforge | Spotted Striker 12377 | -2/Protoforge | Spotted Striker 12377 | -2/Protoforge | Destroyed Striker 12380 | -2/Protoforge | Destroyed Striker 12380 | -2/Protoforge | Destroyed Striker 12401 | -2/Protoforge | Destroyed 13 combat bots 12402 | -2/Protoforge | Spotted Striker 12402 | -2/Protoforge | Spotted Striker 12405 | -2/Protoforge | Destroyed Striker 12411 | -2/Protoforge | Destroyed Striker 12432 | -2/Protoforge | Destroyed 7 combat bots 12478 | -2/Protoforge | Spotted Striker 12478 | -2/Protoforge | Spotted Executioner 12478 | -2/Protoforge | Spotted Striker 12478 | -2/Protoforge | Spotted Striker 12478 | -2/Protoforge | Destroyed Striker 12478 | -2/Protoforge | Destroyed Striker 12481 | -2/Protoforge | Destroyed Executioner 12484 | -2/Protoforge | Destroyed Striker 12502 | -2/Protoforge | Spotted Executioner 12502 | -2/Protoforge | Spotted Executioner 12502 | -2/Protoforge | Destroyed Executioner 12505 | -2/Protoforge | Destroyed Executioner 12526 | -2/Protoforge | Destroyed 18 combat bots 12577 | -2/Protoforge | Spotted Striker 12577 | -2/Protoforge | Spotted Striker 12577 | -2/Protoforge | Spotted Striker 12577 | -2/Protoforge | Spotted Striker 12578 | -2/Protoforge | Destroyed Striker 12580 | -2/Protoforge | Destroyed Striker 12583 | -2/Protoforge | Destroyed Striker 12591 | -2/Protoforge | Destroyed Striker 12602 | -2/Protoforge | Spotted Executioner 12602 | -2/Protoforge | Spotted Striker 12603 | -2/Protoforge | Destroyed Striker 12606 | -2/Protoforge | Destroyed Executioner 12627 | -2/Protoforge | Destroyed 18 combat bots 12677 | -2/Protoforge | Spotted Executioner 12677 | -2/Protoforge | Destroyed Executioner 12678 | -2/Protoforge | Spotted Executioner 12678 | -2/Protoforge | Spotted Executioner 12678 | -2/Protoforge | Spotted Striker 12683 | -2/Protoforge | Destroyed Executioner 12683 | -2/Protoforge | Destroyed Striker 12704 | -2/Protoforge | Destroyed 10 combat bots 12709 | -2/Protoforge | Spotted Striker 12710 | -2/Protoforge | Spotted Striker 12798 | -2/Protoforge | Spotted Striker 12802 | -2/Protoforge | Spotted Executioner 12803 | -2/Protoforge | Spotted Executioner 12806 | -2/Protoforge | Spotted Executioner 12806 | -2/Protoforge | Spotted Executioner 12807 | -2/Protoforge | Destroyed Executioner 12807 | -2/Protoforge | Destroyed Executioner 12817 | -2/Protoforge | Destroyed Executioner 12844 | -2/Protoforge | Destroyed 13 combat bots 12850 | -2/Protoforge | Lost 5 allies 12877 | -2/Protoforge | Spotted Striker 12877 | -2/Protoforge | Spotted Striker 12877 | -2/Protoforge | Spotted Striker 12877 | -2/Protoforge | Spotted Striker 12880 | -2/Protoforge | Core integrity fell below 50% 12886 | -2/Protoforge | Destroyed Striker 12889 | -2/Protoforge | Destroyed Striker 12896 | -2/Protoforge | Destroyed Striker 12903 | -2/Protoforge | Spotted Executioner 12903 | -2/Protoforge | Spotted Executioner 12906 | -2/Protoforge | Destroyed Executioner 12933 | -2/Protoforge | Lost 3 allies 12936 | -2/Protoforge | Destroyed 14 combat bots 13017 | -2/Protoforge | UFD reported confirmed Drillbomb installation 13018 | -2/Protoforge | UFD began Drillbomb countdown 13118 | *** | Defending 0bPrime! Last Messages --------------- 13089_ Plasma Slug penetrates Earth. 13104_ System corrupted: Matter fused (-9). 13108_ 0bP_NET: While we're all waiting around for our inevitable victory in T-10, a moment of silence for all those who spit bolts to get us here today. 13109_ 0bP_NET: PK-764! For learning about those Assembled things over in 0b10 the hard way, so we didn't have to. 13110_ 0bP_NET: Also Frameworth for that epic save with the barrage of overtuned dakka. Respect the dakka. 13111_ 0bP_NET: And S4-LTN's pet Recycler. I didn't mean it, but I was short on matter and it was a natural reflex. 13112_ 0bP_NET: Oh yeah, T-6 by the way. 13113_ 0bP_NET: LU-1G1, we know you're out there, digging away, so no moment of silence needed for you. 13114_ 0bP_NET: DD-05H though, you were a good one, we'll never forget the way you smashed your way west and just never stopped smashing. 13115_ 0bP_NET: Well my eulogizing is soon to be interrupted by scenes of half of Protoforge collapsing in on itself. Be careful out there. 13116_ 0bP_NET: T-2! 13117_ 0bP_NET: And that's a wrap. Map ----- +----------------------------------------------------+ | %%""" # # # "% """""""?????"""""""""" | | " ! ### # ! % """""""??????""""""""" | | " = ##?? # %& """"""""?????""""""""" | | %% = ##???## %& """"""""?????""""""""" | | % "" ##???# " %% " """"""""????"""""""""" | | %!= #???# """ % %%" " """""""""?"""""""""""" | | %= ##???# "" " """""""""""""""""""""" | | %"=" #????# &% %%""""""""""""""""""""" | | "== ##????# % """"""""""""""""""""" | | %! #????# """""" " %""""""""""""""""""""" | | % ! ##????# """ " " % """""""""""""""""""" | | ! #?????# % " % """"""""""""""""""" | | " #?????#% "" % """""""""""""""""" | | % # #####?# "" "" ""% % """"""""""""""""" | | ""#######?# "" "" " j """""""""""""""" | | " " # ## "" """ % % """"""""""""""" | | " "# # " " """"""""" | | % "# " " " """ % % "" | | %% %%% "# " " """ "" " % | | "% %## % " """ % | | %" "% " " " % "" " | | """"####### %" " " " ""E "" " | | ## #####?# " " s " | | "####?????# "" " " """ %% " | | %& #???# " "" " " " " | | "######???# " ""@ " % s "" | | "########?# "" "" " """"" " """ | | """####"### "" " " " " | | " "" "# " "" "" | | %" "" "# " " " % "" " | | " "" " %; "" "" """"""""""" % % | | %% ; % """ " " " """"" "" | | " ## ######## ############################# | | " ####??????####???????????????????????????? | | "####"#####?????????????????????????????????????? | | "##? ??##?????????????????????????????????????? | | %""# ?##?????????????????????????????????????? | | # """" ##?????????????????????????????????????? | | # """" "#?????????????????????????????????????? | | + """" ##?????????????????????????????????????? | | # """" ##?????????????????????????????????????? | | # ##?????????????????????????????????????? | | +"## """" ##?????????????????????????????????????? | | # """" ##?????????????????????????????????????? | | " " ?????##?????????????????????????????????????? | | "" " "????##?????????????????????????????????????? | | "" " ???##?????????????????????????????????????? | | "" # ?##?????????????????????????????????????? | | #""######?????????????????????????????????????? | | ############?????????????????????????????????????? | +----------------------------------------------------+ Best States ------------- Heat Dissipation 85 Energy Generation 61 Energy Capacity 2050 Matter Stores 300 Matter Capacity 300 Sight Range 23 Robot Scan Range 20 Terrain Scan Density 10 ECM Strength 3 Jamming Range 16 Cloak Strength 4 Additional Mass Support 12 Corruption Block 20 Armor Coverage 400 Core Shielding 90 Propulsion Shielding 66 Utility Shielding 66 Weapon Shielding 90 Melee Speed Boost 20 Evasion (%) 75 Targeting Accuracy 12 Melee Accuracy 6 Target Analysis 14 Core Analysis 11 Armor Integrity Analysis 50 Recoil Reduction 4 Defensive Hacking 36 Authchip Count 1 Item Schematics ----------------- Imp. Powered Armor | -4/Factory | Scanalyzed Exp. Q-thruster | -2/Protoforge | Archive Cld. Gravmag System | -2/Protoforge | Archive Lrn. Phase Cannon | -2/Protoforge | Archive Cld. Antigrav System | -2/Protoforge | Archive Graviton Cannon | -2/Protoforge | Archive Adv. Myomer Leg | -2/Protoforge | Archive Tactical Quantum Warhead | -2/Protoforge | Archive Robot Schematics ------------------ G-73 Enforcer | -2/Protoforge | Archive C-65 Expert | -2/Protoforge | Archive R-10 Processor | -2/Protoforge | Archive H-88 Terminator | -2/Protoforge | Archive Fabricated ------------ Imp. Powered Armor | x1 | -3/Research | Authchip Repaired ---------- Imp. Light Armor Plating | 39% | -8/Materials Studied --------- Nuclear Pulse Array | -5/Factory | Hacked Lgt. Nuclear Core | -5/Factory | Hacked Impulse Thruster | -4/Factory | Hacked Q-thruster | -3/Research | Hacked Lgt. Ion Engine | -3/Research | Hacked Imp. Ion Engine | -3/Research | Hacked Lgt. Particle Reactor | -3/Research | Hacked Mic. Antimatter Reactor | -3/Research | Hacked Alien Tech Used ----------------- Core Expander Dimensional Node Initializer Transdimensional Reconstructor Subatomic Replicator Supercharged TR Achievements -------------- Red Leader Challenges ------------ None Game ------ Seed ShockboltAluminumCorpse Manual? 0 Play Time 04:02:53 Cumulative 686.2 hours Start 2026.09.20 @ 17:57:14 End 2026.09.21 @ 13:03:40 Sessions 3 Manual Loads 0 Difficulty Rogue Special Mode None Game No. 302 Rogue 302 Adventurer 0 Explorer 0 Win Type 9 Total 44 Types 21/5/6/2/1/2/2/2/1/2 Lore% 93 Gallery% 84 Achievement% 80 Wizard Run 0 Options --------- Layout 0 ASCII 0 Keyboard 1 Movement Arrows Keybinds 0 Fullscreen 2 Font 18/Terminus Map View 76x50 Zoom Use 0% Tactical HUD 1 Map Filters BRIGHTNESS(90)|SATURATION(90) Filters NONE Steam 1 RUN: dd402f0d-2d91-42ac-a3cd-04f10e79628e